Workbook

Sheet Stikprøve
B3: Vurdering af resultat fra stikprøvekontrol på varmeenergimålere
B4: Komplet måler - husholdning - dobbelt stikprøveplan | N4: 2020-03-09
B6: Iht. bekendtgørelse nr. 582 af 28. maj 2018 skal en instrumentejer etablere en egenkontrol, der giver tilstrækkelig sikkerhed for, at brugstolerancen ikke overskrides på varmeenergimålere, der anvendes til afregning.
B7: Brugstolerancen er lig med det dobbelte af den tolerance, som var gældende, da varmeenergimåleren blev bragt i omsætning (også kaldet verifikationsfejlsgrænsen).
B8: Yderligere informationer kan findes følgende steder: | F8: Måleteknisk vejledning CLM.VARME.01 | K8: Sikkerhedsstyrelsens vejledning nr. 9464 af 20. juni 2018
B10: Vigtigt: Dette værktøj kan anvendes af instrumentejere (og målelaboratorier) som hjælp til at vurdere et stikprøveresultat og fastsætte tiden til næste stikprøve. Værktøjet er lavet ud fra de målepunkter, som er angivet i den måletekniske vejledning CLM.VARME.01 for en komplet måler, der anvendes i husholdninger, og kan ikke anvendes for stikprøver, hvor der anvendes andre målepunkter eller for målere i erhverv/industri.
B12: Værktøjet adskiller sig dog fra metoden i CLM.VARME.01 ved, at målernes afvigelser vurderes ift. 9 kontrolgrænser i stedet for 3. Det betyder, at hvor metoden i CLM.VARME.01 kan give en forlængelse på 0, 3, 6 eller 9 år, så kan dette værktøj give fra 0 til 9 år med alle mellemliggende år.
B14: Det er altid instrumentejerens ansvar, at afregningsmålere overholder brugstolerancen, og derfor også dennes ansvar at beslutte, hvornår der for de konkrete målere skal udføres stikprøver. Det anbefales, at der også søges vejledning om dette ved det anvendte målerlaboratorium og eventuelt ved producenten af det konkrete måleinstrument. Vurderinger af de måletekniske forhold mm. kan skrives i de grå felter i højre side.
B17: Vejledning: Udfyld de grønne felter. Resultater og anbefaling vises i de orange felter. Anvend ikke anbefalingen ukritisk. Tag altid selv stilling til, om anbefalingen virker fornuftig ift. stikprøven og øvrig viden om partiet.
B20: Skema med målepunkter fra CLM.VARME.01 - Husholdninger, komplet måler: | J20: Vurdering efter 1. stikprøve: | R20: Generelle bemærkninger til vurdering af resultat:
J21: (se fanen "Metode" for forklaring bag vurderingen)
J22: Ud fra summen af afvigende målere i de tre målepunkter og stikprøvens godkendelsestal anbefales det, at der maksimalt gives følgende antal år til næste stikprøve eller udskiftning på baggrund af første stikprøve alene:
J25: Maksimalt antal år til næste stikprøve eller udskiftning ud fra 1. stikprøve alene: | M25: =IF(ISBLANK(D49),"",Beregninger!Y26) ->  | N25: =IF(M25=0,"Ingen forlængelse. Nedtag hurtigst muligt","") -> 
J28: Hvis 2. stikprøve laves, er det muligt, at vurderingen vil ende et sted i følgende interval alt efter udfaldet af 2. stikprøve: | M28: ="fra 0 til "&Beregninger!AE26&" år" -> fra 0 til 9 år | N28: =IF(Beregninger!AE26=M25,"Udtag ikke 2. stikprøve. Ingen yderligere forlængelse mulig.","") -> 
R29: Vurderingspunkter i henold til den måletekniske vejledning CLM.VARME.01 Bilag 3:
J31: Vurdering efter 1.+2. stikprøve: | R31: Målertypens godkendelsesperiode: | W31: Tryk her for forklaring
J33: På baggrund af 1.+2. stikprøve kan partiet forlænges med følgende antal år til næste stikprøve eller udskiftning: | M33: =IF(ISBLANK(L49),"",Beregninger!AT25) ->  | N33: =IF(M33=0,"Ingen forlængelse. Nedtag hurtigst muligt","") -> 
B37: Parti-identifikation: | R37: Komponentlevetid: | W37: Tryk her for forklaring
B39: Indsæt partistørrelse: | D39: 500 | E39: min. 4 og maks. 3.200
B41: 1. stikprøve | J41: 2. stikprøve - udtages kun hvis det ønskes efter resultatet fra 1. stikprøve
B42: Stikprøvestørrelse: | D42: =Beregninger!G3 -> 32 | E42: = udtag dette antal målere | J42: Stikprøvestørrelse: | L42: =Beregninger!I3 -> 32 | M42: = udtag dette antal målere
B43: Godkendelsestal: | D43: =Beregninger!G4 -> 2 | E43: (anvendes i beregninger) | J43: Godkendelsestal: | L43: =Beregninger!I4 -> 6 | M43: (anvendes i beregninger) | R43: Vandkvalitet: | W43: Tryk her for forklaring
B44: Forkastelsestal: | D44: =Beregninger!G5 -> 5 | E44: (anvendes i beregninger) | J44: Forkastelsestal: | L44: =Beregninger!I5 -> 7 | M44: (anvendes i beregninger)
B46: Indsæt kontrolresultater for alle målerne udtaget i 1. stikprøve: | J46: Indsæt kontrolresultater for alle målerne udtaget i 2. stikprøve:
B48: Nr.: | C48: Måler-identifikation: | D48: Afvigelse punkt 1 [%]: | E48: Afvigelse punkt 2 [%]: | F48: Afvigelse punkt 3 [%]: | J48: Nr.: | K48: Måler-identifikation: | L48: Afvigelse punkt 1 [%]: | M48: Afvigelse punkt 2 [%]: | N48: Afvigelse punkt 3 [%]:
A49: =ISNUMBER(B49) -> TRUE | B49: =IF($D$42>=ROW(A1),ROW(A1),"") -> 1 | I49: =ISNUMBER(J49) -> TRUE | J49: =IF($L$42>=ROW(A1),ROW(A1),"") -> 1 | R49: Erfaringsgrundlag for opsætningsområdet: | W49: Tryk her for forklaring
A50: =ISNUMBER(B50) -> TRUE | B50: =IF($D$42>=ROW(A2),ROW(A2),"") -> 2 | I50: =ISNUMBER(J50) -> TRUE | J50: =IF($L$42>=ROW(A2),ROW(A2),"") -> 2
A51: TRUE | B51: 3 | I51: TRUE | J51: 3
A52: TRUE | B52: 4 | I52: TRUE | J52: 4
A53: TRUE | B53: 5 | I53: TRUE | J53: 5
A54: TRUE | B54: 6 | I54: TRUE | J54: 6
A55: TRUE | B55: 7 | I55: TRUE | J55: 7 | R55: Erfaringsgrundlag for målertypen: | W55: Tryk her for forklaring
A56: TRUE | B56: 8 | I56: TRUE | J56: 8
A57: TRUE | B57: 9 | I57: TRUE | J57: 9
A58: TRUE | B58: 10 | I58: TRUE | J58: 10
A59: TRUE | B59: 11 | I59: TRUE | J59: 11
A60: TRUE | B60: 12 | I60: TRUE | J60: 12
A61: TRUE | B61: 13 | I61: TRUE | J61: 13
A62: TRUE | B62: 14 | I62: TRUE | J62: 14 | R62: Præsentation af kontrolresultater fordelt på intervaller for afvigelse:
A63: TRUE | B63: 15 | I63: TRUE | J63: 15 | R63: Forklaring af vurdering efter 1. stikprøve:
A64: TRUE | B64: 16 | I64: TRUE | J64: 16 | R64: Hvis mere end | T64: =D43 -> 2 | U64: (godkendelsestallet i 1. stikprøve) målere efter 1. stikprøve overskrider
A65: TRUE | B65: 17 | I65: TRUE | J65: 17 | R65: den nedre grænse for afvigelsen i et givent interval, ender partiet i dette interval.
A66: TRUE | B66: 18 | I66: TRUE | J66: 18
A67: TRUE | B67: 19 | I67: TRUE | J67: 19 | R67: Hvis mindst | T67: =D44 -> 5 | U67: (forkastelsestallet i 1. stikprøve) målere efter 1. stikprøve overskrider den
A68: TRUE | B68: 20 | I68: TRUE | J68: 20 | R68: øvre grænse for afvigelsen i et givent interval, forkastes partiet i dette interval, og kan heller ikke
A69: TRUE | B69: 21 | I69: TRUE | J69: =IF($L$42>=ROW(A21),ROW(A21),"") -> 21 | R69: godkendes i intervallet efter 2. stikprøve (markeret på graferne med gennemsigtig rød søjle).
A70: =ISNUMBER(B70) -> TRUE | B70: =IF($D$42>=ROW(A22),ROW(A22),"") -> 22 | I70: TRUE | J70: =IF($L$42>=ROW(A22),ROW(A22),"") -> 22
A71: =ISNUMBER(B71) -> TRUE | B71: 23 | I71: TRUE | J71: 23
A72: TRUE | B72: 24 | I72: TRUE | J72: 24
A73: TRUE | B73: 25 | I73: TRUE | J73: 25
A74: TRUE | B74: 26 | I74: TRUE | J74: 26
A75: TRUE | B75: 27 | I75: TRUE | J75: 27
A76: TRUE | B76: 28 | I76: TRUE | J76: 28
A77: TRUE | B77: 29 | I77: TRUE | J77: 29
A78: TRUE | B78: 30 | I78: TRUE | J78: 30
A79: TRUE | B79: 31 | I79: TRUE | J79: 31
A80: TRUE | B80: 32 | I80: TRUE | J80: 32
A81: FALSE | I81: FALSE
A82: FALSE | I82: FALSE
A83: FALSE | I83: FALSE
A84: FALSE | I84: FALSE | R84: Forklaring af vurdering efter 2. stikprøve:
A85: FALSE | I85: FALSE | R85: Hvis mere end | T85: =$L$43 -> 6 | U85: (godkendelsestallet i 1.+2. stikprøve) målere efter 1. + 2. stikprøve
A86: FALSE | I86: FALSE | R86: overskrider den nedre grænse for afvigelsen i et givent interval, ender partiet i dette interval.
A87: FALSE | I87: FALSE
A88: FALSE | I88: FALSE
A89: FALSE | I89: FALSE
A90: FALSE | I90: FALSE
A91: FALSE | I91: FALSE
A92: FALSE | I92: FALSE
A93: FALSE | I93: FALSE
A94: FALSE | I94: FALSE
A95: FALSE | I95: FALSE
A96: FALSE | I96: FALSE
A97: FALSE | I97: FALSE
A98: FALSE | I98: FALSE
A99: FALSE | I99: FALSE
A100: FALSE | I100: FALSE
A101: FALSE | I101: FALSE | R101: Fordeling af målere på intervallerne i de enkelte målepunkter efter 1. stikprøve (intervalværdier er afrundet):
A102: FALSE | I102: FALSE
A103: FALSE | I103: FALSE
A104: FALSE | I104: FALSE
A105: FALSE | I105: FALSE
A106: FALSE | I106: FALSE
A107: FALSE | I107: FALSE
A108: FALSE | I108: FALSE
A109: FALSE | I109: FALSE
A110: FALSE | I110: FALSE
A111: FALSE | I111: FALSE
A112: FALSE | I112: FALSE
A113: FALSE | I113: FALSE
A114: =ISNUMBER(B114) -> FALSE | B114: =IF($D$42>=ROW(A66),ROW(A66),"") ->  | I114: =ISNUMBER(J114) -> FALSE | J114: =IF($L$42>=ROW(A66),ROW(A66),"") -> 
A115: FALSE | I115: FALSE
A116: FALSE | I116: FALSE
A117: FALSE | I117: FALSE
A118: FALSE | I118: FALSE
A119: FALSE | I119: FALSE
A120: FALSE | I120: FALSE
A121: FALSE | I121: FALSE
A122: FALSE | I122: FALSE
A123: FALSE | I123: FALSE
A124: FALSE | I124: FALSE
A125: FALSE | I125: FALSE
A126: FALSE | I126: FALSE
A127: FALSE | I127: FALSE
A128: FALSE | I128: FALSE
A129: =ISNUMBER(B124) -> FALSE
A130: FALSE
A131: FALSE
A132: FALSE
A133: FALSE
A134: FALSE
A135: FALSE
A136: FALSE
A137: FALSE
A138: FALSE
A139: FALSE
A140: FALSE | R140: Fordeling af målere på intervallerne i de enkelte målepunkter efter 1. + 2. stikprøve (intervalværdier er afrundet):
A141: FALSE
A142: FALSE
A143: FALSE
A144: FALSE
A145: FALSE
A146: FALSE
A147: FALSE
A148: FALSE
A149: FALSE
A150: FALSE
A151: FALSE
A152: FALSE
A153: FALSE
A154: FALSE
A155: FALSE
A156: FALSE
A157: FALSE
A158: FALSE
A159: FALSE
A160: FALSE
A161: FALSE
A162: FALSE
A163: FALSE
A164: FALSE
A165: FALSE
A166: FALSE
A167: FALSE
A168: FALSE
A169: FALSE
A170: FALSE
A171: FALSE
A172: FALSE
A173: FALSE
A174: FALSE
A175: FALSE | B175: =IF($D$42>=ROW(A134),ROW(A134),"") -> 
A176: FALSE | B176: =IF($D$42>=ROW(A135),ROW(A135),"") -> 
A177: FALSE | B177: =IF($D$42>=ROW(A136),ROW(A136),"") -> 

Sheet Tabel til manuel brug
F3: 1. stikprøve (udføres altid) | I3: 2. stikprøve (udføres hvis 1. stikprøveresultat ikke er entydigt) | M3: Partiinddeling af målere (afsnit 3.1. i CLM.VARME.01) Målerbestanden inddeles i partier med ensartede karakteristika, således at resultatet fra stikprøvekontrollen kan betragtes som repræsentativt for det parti, som målerne er udtaget fra.
B4: Partistørrelse | F4: Stikprøve-størrelse | G4: Godkendelsestal | H4: Forkastelsestal | I4: Stikprøvestørrelse | J4: Godkendelsestal | K4: Forkastelsestal
B5: Det samlede antal målere i partiet | E5: Stikprøvestørrelse 1.+2. | F5: Antal målere heraf der skal stikprøvekon-trolleres i 1. stikprøve | G5: Antal målere i 1. stikprøve som overskrider kontrolgrænserne | I5: Antal målere heraf der skal stikprøve-kontrolleres i 2. stikprøve | J5: Antal målere i 1.+2. stikprøve som overskrider kontrolgrænserne | M5: Målerne skal som minimum: – have samme måleprincip f.eks. vingehjulsmålere, magnetisk induktive målere eller ultralydsmålere, – være af samme type, fabrikat og størrelse, og – være opsat inden for en periode på maksimalt 2 år.
G6: højst | H6: mindst | J6: højst | K6: mindst
B7: =B8-1 -> 90 | C7: - | D7: 90 | E7: 16 | F7: 8 | G7: 0 | H7: 2 | I7: =E7-F7 -> 8 | J7: 1 | K7: 2
B8: 91 | C8: - | D8: =B9-1 -> 96 | E8: 17 | F8: 9 | G8: 0 | H8: 2 | I8: 8 | J8: 1 | K8: 2
B9: 97 | C9: - | D9: 102 | E9: 18 | F9: 9 | G9: 0 | H9: 2 | I9: 9 | J9: 1 | K9: 2
B10: 103 | C10: - | D10: 108 | E10: 19 | F10: 10 | G10: 0 | H10: 2 | I10: 9 | J10: 1 | K10: 2
B11: 109 | C11: - | D11: 114 | E11: 20 | F11: 10 | G11: 0 | H11: 2 | I11: 10 | J11: 1 | K11: 2 | M11: Målerne i et parti skal desuden have nogenlunde ens driftsbetingelser. Hvis en instrumentejer har meget forskellige driftsbetingelser forskellige steder i nettet, er det derfor vigtigt, at instrumentejeren danner partier af målere, så der inden for det enkelte parti undgås forskellige driftsbetingelser.
B12: 115 | C12: - | D12: 119 | E12: 21 | F12: 11 | G12: 0 | H12: 2 | I12: 10 | J12: 1 | K12: 2
B13: 120 | C13: - | D13: 120 | E13: 21 | F13: 11 | G13: 0 | H13: 2 | I13: 10 | J13: 1 | K13: 2
B14: 121 | C14: - | D14: 126 | E14: 22 | F14: 11 | G14: 0 | H14: 2 | I14: 11 | J14: 1 | K14: 2
B15: 127 | C15: - | D15: 132 | E15: 23 | F15: 12 | G15: 0 | H15: 2 | I15: 11 | J15: 1 | K15: 2
B16: 133 | C16: - | D16: 138 | E16: 24 | F16: 12 | G16: 0 | H16: 2 | I16: 12 | J16: 1 | K16: 2 | M16: Herudover skal man være opmærksom på, at der er forskellige tolerancekrav til målere, som hhv. anvendes i husholdninger og i erhvervsmiljøer og lette industrimiljøer. Se yderligere i afsnit 5.2.
B17: 139 | C17: - | D17: 144 | E17: 25 | F17: 13 | G17: 0 | H17: 2 | I17: 12 | J17: 1 | K17: 2
B18: 145 | C18: - | D18: =B19-1 -> 149 | E18: 26 | F18: 13 | G18: 0 | H18: 2 | I18: 13 | J18: 1 | K18: 2
B19: 150 | C19: - | D19: 150 | E19: 26 | F19: 13 | G19: 0 | H19: 3 | I19: 13 | J19: 3 | K19: 4
B20: 151 | C20: - | D20: =B21-1 -> 159 | E20: 27 | F20: 14 | G20: 0 | H20: 3 | I20: 13 | J20: 3 | K20: 4 | M20: Flere instrumentejere kan gå sammen om at danne partier, hvis ovenstående betingelser overholdes, og må-lerne har ens driftsbetingelser.
B21: 160 | C21: - | D21: =B22-1 -> 168 | E21: 28 | F21: 14 | G21: 0 | H21: 3 | I21: 14 | J21: 3 | K21: 4
B22: 169 | C22: - | D22: 177 | E22: 29 | F22: 15 | G22: 0 | H22: 3 | I22: 14 | J22: 3 | K22: 4
B23: 178 | C23: - | D23: 187 | E23: 30 | F23: 15 | G23: 0 | H23: 3 | I23: 15 | J23: 3 | K23: 4
B24: 188 | C24: - | D24: 196 | E24: 31 | F24: 16 | G24: 0 | H24: 3 | I24: 15 | J24: 3 | K24: 4 | M24: Yderligere vejledning til manuel brug
B25: 197 | C25: - | D25: 205 | E25: 32 | F25: 16 | G25: 0 | H25: 3 | I25: 16 | J25: 3 | K25: 4 | M25: Yderligere forklaring og eksempel på anvendelse af metoden kan findes i den måletekniske vejledning CLM.VARME.01 afsnit 4.2.
B26: 206 | C26: - | D26: 215 | E26: 33 | F26: 17 | G26: 0 | H26: 3 | I26: 16 | J26: 3 | K26: 4
B27: 216 | C27: - | D27: 224 | E27: 34 | F27: 17 | G27: 0 | H27: 3 | I27: 17 | J27: 3 | K27: 4
B28: 225 | C28: - | D28: 233 | E28: 35 | F28: 18 | G28: 0 | H28: 3 | I28: 17 | J28: 3 | K28: 4
B29: 234 | C29: - | D29: 242 | E29: 36 | F29: 18 | G29: 0 | H29: 3 | I29: 18 | J29: 3 | K29: 4
B30: 243 | C30: - | D30: 252 | E30: 37 | F30: 19 | G30: 0 | H30: 3 | I30: 18 | J30: 3 | K30: 4
B31: 253 | C31: - | D31: 261 | E31: 38 | F31: 19 | G31: 0 | H31: 3 | I31: 19 | J31: 3 | K31: 4
B32: 262 | C32: - | D32: 270 | E32: 39 | F32: 20 | G32: 0 | H32: 3 | I32: 19 | J32: 3 | K32: 4
B33: 271 | C33: - | D33: 279 | E33: 40 | F33: 20 | G33: 0 | H33: 3 | I33: 20 | J33: 3 | K33: 4
B34: 280 | C34: - | D34: 280 | E34: 40 | F34: 20 | G34: 1 | H34: 3 | I34: 20 | J34: 4 | K34: 5
B35: 281 | C35: - | D35: 289 | E35: 41 | F35: 21 | G35: 1 | H35: 3 | I35: 20 | J35: 4 | K35: 5
B36: 290 | C36: - | D36: 298 | E36: 42 | F36: 21 | G36: 1 | H36: 3 | I36: 21 | J36: 4 | K36: 5
B37: 299 | C37: - | D37: 307 | E37: 43 | F37: 22 | G37: 1 | H37: 3 | I37: 21 | J37: 4 | K37: 5
B38: 308 | C38: - | D38: 316 | E38: 44 | F38: 22 | G38: 1 | H38: 3 | I38: 22 | J38: 4 | K38: 5
B39: 317 | C39: - | D39: 325 | E39: 45 | F39: 23 | G39: 1 | H39: 3 | I39: 22 | J39: 4 | K39: 5
B40: 326 | C40: - | D40: 335 | E40: 46 | F40: 23 | G40: 1 | H40: 3 | I40: 23 | J40: 4 | K40: 5
B41: 336 | C41: - | D41: 344 | E41: 47 | F41: 24 | G41: 1 | H41: 3 | I41: 23 | J41: 4 | K41: 5
B42: 345 | C42: - | D42: 353 | E42: 48 | F42: 24 | G42: 1 | H42: 3 | I42: 24 | J42: 4 | K42: 5
B43: 354 | C43: - | D43: 362 | E43: 49 | F43: 25 | G43: 1 | H43: 3 | I43: 24 | J43: 4 | K43: 5
B44: 363 | C44: - | D44: 371 | E44: 50 | F44: 25 | G44: 1 | H44: 3 | I44: 25 | J44: 4 | K44: 5
B45: 372 | C45: - | D45: 380 | E45: 51 | F45: 26 | G45: 1 | H45: 3 | I45: 25 | J45: 4 | K45: 5
B46: 381 | C46: - | D46: 389 | E46: 52 | F46: 26 | G46: 1 | H46: 3 | I46: 26 | J46: 4 | K46: 5
B47: 390 | C47: - | D47: 390 | E47: 52 | F47: 26 | G47: 1 | H47: 4 | I47: 26 | J47: 5 | K47: 6
B48: 391 | C48: - | D48: 399 | E48: 53 | F48: 27 | G48: 1 | H48: 4 | I48: 26 | J48: 5 | K48: 6
B49: 400 | C49: - | D49: 408 | E49: 54 | F49: 27 | G49: 1 | H49: 4 | I49: 27 | J49: 5 | K49: 6
B50: 409 | C50: - | D50: 417 | E50: 55 | F50: 28 | G50: 1 | H50: 4 | I50: 27 | J50: 5 | K50: 6
B51: 418 | C51: - | D51: 426 | E51: 56 | F51: 28 | G51: 1 | H51: 4 | I51: 28 | J51: 5 | K51: 6
B52: 427 | C52: - | D52: 435 | E52: 57 | F52: 29 | G52: 1 | H52: 4 | I52: 28 | J52: 5 | K52: 6
B53: 436 | C53: - | D53: 445 | E53: 58 | F53: 29 | G53: 1 | H53: 4 | I53: 29 | J53: 5 | K53: 6
B54: 446 | C54: - | D54: 454 | E54: 59 | F54: 30 | G54: 1 | H54: 4 | I54: 29 | J54: 5 | K54: 6
B55: 455 | C55: - | D55: 463 | E55: 60 | F55: 30 | G55: 1 | H55: 4 | I55: 30 | J55: 5 | K55: 6
B56: 464 | C56: - | D56: 472 | E56: 61 | F56: 31 | G56: 1 | H56: 4 | I56: 30 | J56: 5 | K56: 6
B57: 473 | C57: - | D57: 481 | E57: 62 | F57: 31 | G57: 1 | H57: 4 | I57: 31 | J57: 5 | K57: 6
B58: 482 | C58: - | D58: 490 | E58: 63 | F58: 32 | G58: 1 | H58: 4 | I58: 31 | J58: 5 | K58: 6
B59: 491 | C59: - | D59: 499 | E59: 64 | F59: 32 | G59: 1 | H59: 4 | I59: 32 | J59: 5 | K59: 6
B60: 500 | C60: - | D60: 500 | E60: 64 | F60: 32 | G60: 2 | H60: 5 | I60: 32 | J60: 6 | K60: 7
B61: 501 | C61: - | D61: 519 | E61: 65 | F61: 33 | G61: 2 | H61: 5 | I61: 32 | J61: 6 | K61: 7
B62: 520 | C62: - | D62: 538 | E62: 66 | F62: 33 | G62: 2 | H62: 5 | I62: 33 | J62: 6 | K62: 7
B63: 539 | C63: - | D63: 558 | E63: 67 | F63: 34 | G63: 2 | H63: 5 | I63: 33 | J63: 6 | K63: 7
B64: 559 | C64: - | D64: 577 | E64: 68 | F64: 34 | G64: 2 | H64: 5 | I64: 34 | J64: 6 | K64: 7
B65: 578 | C65: - | D65: 597 | E65: 69 | F65: 35 | G65: 2 | H65: 5 | I65: 34 | J65: 6 | K65: 7
B66: 598 | C66: - | D66: 616 | E66: 70 | F66: 35 | G66: 2 | H66: 5 | I66: 35 | J66: 6 | K66: 7
B67: 617 | C67: - | D67: 636 | E67: 71 | F67: 36 | G67: 2 | H67: 5 | I67: 35 | J67: 6 | K67: 7
B68: 637 | C68: - | D68: 655 | E68: 72 | F68: 36 | G68: 2 | H68: 5 | I68: 36 | J68: 6 | K68: 7
B69: 656 | C69: - | D69: 675 | E69: 73 | F69: 37 | G69: 2 | H69: 5 | I69: 36 | J69: 6 | K69: 7
B70: 676 | C70: - | D70: 694 | E70: 74 | F70: 37 | G70: 2 | H70: 5 | I70: 37 | J70: 6 | K70: 7
B71: 695 | C71: - | D71: =B72-1 -> 713 | E71: 75 | F71: 38 | G71: 2 | H71: 5 | I71: =E71-F71 -> 37 | J71: 6 | K71: 7
B72: 714 | C72: - | D72: 733 | E72: 76 | F72: 38 | G72: 2 | H72: 5 | I72: 38 | J72: 6 | K72: 7
B73: 734 | C73: - | D73: 752 | E73: 77 | F73: 39 | G73: 2 | H73: 5 | I73: 38 | J73: 7 | K73: 8
B74: 753 | C74: - | D74: 772 | E74: 78 | F74: 39 | G74: 2 | H74: 5 | I74: 39 | J74: 7 | K74: 8
B75: 773 | C75: - | D75: 791 | E75: 79 | F75: 40 | G75: 2 | H75: 5 | I75: 39 | J75: 7 | K75: 8
B76: 792 | C76: - | D76: 811 | E76: 80 | F76: 40 | G76: 2 | H76: 5 | I76: 40 | J76: 7 | K76: 8
B77: 812 | C77: - | D77: 830 | E77: 81 | F77: 41 | G77: 2 | H77: 5 | I77: 40 | J77: 7 | K77: 8
B78: 831 | C78: - | D78: 850 | E78: 82 | F78: 41 | G78: 2 | H78: 5 | I78: 41 | J78: 7 | K78: 8
B79: 851 | C79: - | D79: 869 | E79: 83 | F79: 42 | G79: 2 | H79: 5 | I79: 41 | J79: 7 | K79: 8
B80: 870 | C80: - | D80: 888 | E80: 84 | F80: 42 | G80: 2 | H80: 5 | I80: 42 | J80: 7 | K80: 8
B81: 889 | C81: - | D81: 908 | E81: 85 | F81: 43 | G81: 2 | H81: 5 | I81: 42 | J81: 7 | K81: 8
B82: 909 | C82: - | D82: 927 | E82: 86 | F82: 43 | G82: 2 | H82: 5 | I82: 43 | J82: 7 | K82: 8
B83: 928 | C83: - | D83: 947 | E83: 87 | F83: 44 | G83: 2 | H83: 5 | I83: 43 | J83: 7 | K83: 8
B84: 948 | C84: - | D84: 966 | E84: 88 | F84: 44 | G84: 2 | H84: 5 | I84: 44 | J84: 7 | K84: 8
B85: 967 | C85: - | D85: =B86-1 -> 986 | E85: 89 | F85: 45 | G85: 2 | H85: 5 | I85: 44 | J85: 8 | K85: 9
B86: 987 | C86: - | D86: 1005 | E86: 90 | F86: 45 | G86: 2 | H86: 5 | I86: 45 | J86: 8 | K86: 9
B87: 1006 | C87: - | D87: 1025 | E87: 91 | F87: 46 | G87: 2 | H87: 5 | I87: 45 | J87: 8 | K87: 9
B88: 1026 | C88: - | D88: 1044 | E88: 92 | F88: 46 | G88: 2 | H88: 5 | I88: 46 | J88: 8 | K88: 9
B89: 1045 | C89: - | D89: 1063 | E89: 93 | F89: 47 | G89: 2 | H89: 5 | I89: 46 | J89: 8 | K89: 9
B90: 1064 | C90: - | D90: 1083 | E90: 94 | F90: 47 | G90: 2 | H90: 5 | I90: 47 | J90: 8 | K90: 9
B91: 1084 | C91: - | D91: 1102 | E91: 95 | F91: 48 | G91: 2 | H91: 5 | I91: 47 | J91: 8 | K91: 9
B92: 1103 | C92: - | D92: 1122 | E92: 96 | F92: 48 | G92: 2 | H92: 5 | I92: 48 | J92: 8 | K92: 9
B93: 1123 | C93: - | D93: 1141 | E93: 97 | F93: 49 | G93: 2 | H93: 5 | I93: 48 | J93: 8 | K93: 9
B94: 1142 | C94: - | D94: 1161 | E94: 98 | F94: 49 | G94: 2 | H94: 5 | I94: 49 | J94: 8 | K94: 9
B95: 1162 | C95: - | D95: 1180 | E95: 99 | F95: 50 | G95: 2 | H95: 5 | I95: 49 | J95: 8 | K95: 9
B96: 1181 | C96: - | D96: 1199 | E96: 100 | F96: 50 | G96: 2 | H96: 5 | I96: 50 | J96: 8 | K96: 9
B97: 1200 | C97: - | D97: 1200 | E97: 100 | F97: 50 | G97: 3 | H97: 6 | I97: 50 | J97: 9 | K97: 10
B98: 1201 | C98: - | D98: 1233 | E98: 101 | F98: 51 | G98: 3 | H98: 6 | I98: 50 | J98: 9 | K98: 10
B99: 1234 | C99: - | D99: 1266 | E99: 102 | F99: 51 | G99: 3 | H99: 6 | I99: 51 | J99: 9 | K99: 10
B100: 1267 | C100: - | D100: 1300 | E100: 103 | F100: 52 | G100: 3 | H100: 6 | I100: 51 | J100: 9 | K100: 10
B101: 1301 | C101: - | D101: 1333 | E101: 104 | F101: 52 | G101: 3 | H101: 6 | I101: 52 | J101: 9 | K101: 10
B102: 1334 | C102: - | D102: 1366 | E102: 105 | F102: 53 | G102: 3 | H102: 6 | I102: 52 | J102: 9 | K102: 10
B103: 1367 | C103: - | D103: 1400 | E103: 106 | F103: 53 | G103: 3 | H103: 6 | I103: 53 | J103: 9 | K103: 10
B104: 1401 | C104: - | D104: 1433 | E104: 107 | F104: 54 | G104: 3 | H104: 6 | I104: 53 | J104: 9 | K104: 10
B105: 1434 | C105: - | D105: 1466 | E105: 108 | F105: 54 | G105: 3 | H105: 6 | I105: 54 | J105: 9 | K105: 10
B106: 1467 | C106: - | D106: 1500 | E106: 109 | F106: 55 | G106: 3 | H106: 6 | I106: 54 | J106: 9 | K106: 10
B107: 1501 | C107: - | D107: 1533 | E107: 110 | F107: 55 | G107: 3 | H107: 6 | I107: 55 | J107: 9 | K107: 10
B108: 1534 | C108: - | D108: 1566 | E108: 111 | F108: 56 | G108: 3 | H108: 6 | I108: 55 | J108: 9 | K108: 10
B109: 1567 | C109: - | D109: 1600 | E109: 112 | F109: 56 | G109: 3 | H109: 6 | I109: 56 | J109: 9 | K109: 10
B110: 1601 | C110: - | D110: 1633 | E110: 113 | F110: 57 | G110: 3 | H110: 6 | I110: 56 | J110: 9 | K110: 10
B111: 1634 | C111: - | D111: 1666 | E111: 114 | F111: 57 | G111: 3 | H111: 6 | I111: 57 | J111: 9 | K111: 10
B112: 1667 | C112: - | D112: 1700 | E112: 115 | F112: 58 | G112: 3 | H112: 6 | I112: 57 | J112: 9 | K112: 10
B113: 1701 | C113: - | D113: 1733 | E113: 116 | F113: 58 | G113: 3 | H113: 6 | I113: 58 | J113: 9 | K113: 10
B114: 1734 | C114: - | D114: 1766 | E114: 117 | F114: 59 | G114: 3 | H114: 6 | I114: 58 | J114: 9 | K114: 10
B115: 1767 | C115: - | D115: 1800 | E115: 118 | F115: 59 | G115: 3 | H115: 6 | I115: 59 | J115: 9 | K115: 10
B116: 1801 | C116: - | D116: 1833 | E116: 119 | F116: 60 | G116: 3 | H116: 6 | I116: 59 | J116: 9 | K116: 10
B117: 1834 | C117: - | D117: 1866 | E117: 120 | F117: 60 | G117: 3 | H117: 6 | I117: 60 | J117: 9 | K117: 10
B118: 1867 | C118: - | D118: 1900 | E118: 121 | F118: 61 | G118: 3 | H118: 7 | I118: 60 | J118: 10 | K118: 11
B119: 1901 | C119: - | D119: 1933 | E119: 122 | F119: 61 | G119: 3 | H119: 7 | I119: 61 | J119: 10 | K119: 11
B120: 1934 | C120: - | D120: 1966 | E120: 123 | F120: 62 | G120: 3 | H120: 7 | I120: 61 | J120: 10 | K120: 11
B121: 1967 | C121: - | D121: 2000 | E121: 124 | F121: 62 | G121: 3 | H121: 7 | I121: 62 | J121: 10 | K121: 11
B122: 2001 | C122: - | D122: 2033 | E122: 125 | F122: 63 | G122: 3 | H122: 7 | I122: 62 | J122: 10 | K122: 11
B123: 2034 | C123: - | D123: 2066 | E123: 126 | F123: 63 | G123: 3 | H123: 7 | I123: 63 | J123: 10 | K123: 11
B124: 2067 | C124: - | D124: =B125-1 -> 2100 | E124: 127 | F124: 64 | G124: 3 | H124: 7 | I124: 63 | J124: 10 | K124: 11
B125: 2101 | C125: - | D125: 2133 | E125: 128 | F125: 64 | G125: 3 | H125: 7 | I125: 64 | J125: 10 | K125: 11
B126: 2134 | C126: - | D126: 2166 | E126: 129 | F126: 65 | G126: 3 | H126: 7 | I126: 64 | J126: 10 | K126: 11
B127: 2167 | C127: - | D127: 2199 | E127: 130 | F127: 65 | G127: 3 | H127: 7 | I127: 65 | J127: 10 | K127: 11
B128: 2200 | C128: - | D128: 2200 | E128: 130 | F128: 65 | G128: 4 | H128: 7 | I128: 65 | J128: 10 | K128: 11
B129: 2201 | C129: - | D129: 2233 | E129: 131 | F129: 66 | G129: 4 | H129: 7 | I129: 65 | J129: 10 | K129: 11
B130: 2234 | C130: - | D130: 2266 | E130: 132 | F130: 66 | G130: 4 | H130: 7 | I130: 66 | J130: 10 | K130: 11
B131: 2267 | C131: - | D131: 2300 | E131: 133 | F131: 67 | G131: 4 | H131: 7 | I131: 66 | J131: 10 | K131: 11
B132: 2301 | C132: - | D132: 2333 | E132: 134 | F132: 67 | G132: 4 | H132: 7 | I132: 67 | J132: 10 | K132: 11
B133: 2334 | C133: - | D133: 2366 | E133: 135 | F133: 68 | G133: 4 | H133: 7 | I133: 67 | J133: 10 | K133: 11
B134: 2367 | C134: - | D134: 2400 | E134: 136 | F134: 68 | G134: 4 | H134: 7 | I134: 68 | J134: 10 | K134: 11
B135: 2401 | C135: - | D135: 2433 | E135: 137 | F135: 69 | G135: 4 | H135: 7 | I135: =E135-F135 -> 68 | J135: 10 | K135: 11
B136: 2434 | C136: - | D136: 2466 | E136: 138 | F136: 69 | G136: 4 | H136: 7 | I136: 69 | J136: 10 | K136: 11
B137: 2467 | C137: - | D137: 2500 | E137: 139 | F137: 70 | G137: 4 | H137: 7 | I137: 69 | J137: 10 | K137: 11
B138: 2501 | C138: - | D138: 2533 | E138: 140 | F138: 70 | G138: 4 | H138: 7 | I138: 70 | J138: 10 | K138: 11
B139: 2534 | C139: - | D139: 2566 | E139: 141 | F139: 71 | G139: 4 | H139: 8 | I139: 70 | J139: 11 | K139: 12
B140: 2567 | C140: - | D140: 2600 | E140: 142 | F140: 71 | G140: 4 | H140: 8 | I140: 71 | J140: 11 | K140: 12
B141: 2601 | C141: - | D141: 2633 | E141: 143 | F141: 72 | G141: 4 | H141: 8 | I141: 71 | J141: 11 | K141: 12
B142: 2634 | C142: - | D142: 2666 | E142: 144 | F142: 72 | G142: 4 | H142: 8 | I142: 72 | J142: 11 | K142: 12
B143: 2667 | C143: - | D143: 2700 | E143: 145 | F143: 73 | G143: 4 | H143: 8 | I143: 72 | J143: 11 | K143: 12
B144: 2701 | C144: - | D144: 2733 | E144: 146 | F144: 73 | G144: 4 | H144: 8 | I144: 73 | J144: 11 | K144: 12
B145: 2734 | C145: - | D145: 2766 | E145: 147 | F145: 74 | G145: 4 | H145: 8 | I145: 73 | J145: 11 | K145: 12
B146: 2767 | C146: - | D146: 2800 | E146: 148 | F146: 74 | G146: 4 | H146: 8 | I146: 74 | J146: 11 | K146: 12
B147: 2801 | C147: - | D147: 2833 | E147: 149 | F147: 75 | G147: 4 | H147: 8 | I147: 74 | J147: 11 | K147: 12
B148: 2834 | C148: - | D148: 2866 | E148: 150 | F148: 75 | G148: 4 | H148: 8 | I148: 75 | J148: 11 | K148: 12
B149: 2867 | C149: - | D149: =B150-1 -> 2900 | E149: 151 | F149: 76 | G149: 4 | H149: 8 | I149: 75 | J149: 11 | K149: 12
B150: 2901 | C150: - | D150: 2933 | E150: 152 | F150: 76 | G150: 4 | H150: 8 | I150: 76 | J150: 11 | K150: 12
B151: 2934 | C151: - | D151: 2966 | E151: 153 | F151: 77 | G151: 4 | H151: 8 | I151: 76 | J151: 11 | K151: 12
B152: 2967 | C152: - | D152: 3000 | E152: 154 | F152: 77 | G152: 4 | H152: 8 | I152: 77 | J152: 11 | K152: 12
B153: 3001 | C153: - | D153: 3033 | E153: 155 | F153: 78 | G153: 4 | H153: 8 | I153: 77 | J153: 11 | K153: 12
B154: 3034 | C154: - | D154: 3066 | E154: 156 | F154: 78 | G154: 4 | H154: 8 | I154: 78 | J154: 11 | K154: 12
B155: 3067 | C155: - | D155: 3100 | E155: 157 | F155: 79 | G155: 4 | H155: 8 | I155: 78 | J155: 11 | K155: 12
B156: 3101 | C156: - | D156: 3133 | E156: 158 | F156: 79 | G156: 4 | H156: 8 | I156: 79 | J156: 11 | K156: 12
B157: 3134 | C157: - | D157: 3166 | E157: 159 | F157: 80 | G157: 4 | H157: 8 | I157: 79 | J157: 11 | K157: 12
B158: 3167 | C158: - | D158: 3199 | E158: 160 | F158: 80 | G158: 4 | H158: 8 | I158: 80 | J158: 11 | K158: 12
B159: 3200 | C159: - | D159: 3200 | E159: 160 | F159: 80 | G159: 5 | H159: 9 | I159: 80 | J159: 12 | K159: 13

Sheet Metode
B2: Beskrivelse af metoden i værktøjet
B3: Anbefalingen af maks antal år til næste stikprøve/udskiftning laves ud fra, hvordan målernes afvigelser fordeler sig i 10 intervaller
B4: for hvert af de tre målepunkter, som er angivet i vejlendingen CLM.VARME.01 i "Skema 1: Husholdninger, Komplet måler" (indsat til højre).
B5: Metoden er grundlæggende den samme som beskrevet i vejledningen CLM.VARME.01, men med 9 kontrolgrænser i stedet for 3.
B6: Første interval går fra 0 % afvigelse til verifikationsfejlgrænsen, som f.eks. for målepunkt 1 er til og med 6,3 %.
B7: Området mellem verifikationsfejlgrænsen og brugstolerancen (12,6 % for målepunkt 1) er opdelt i 8 lige store intervaller.
B8: For hvert interval afvigelsen stiger fra verifikationsfejlgrænsen mod brugstolerancen, falder anbefalingen til maks. antal år.
B9: Afvigelserne kan både være positive og negative, men i vurderingen behandles de som absolutte værdier, hvorfor der ikke er
B10: intervaller for negative afvigelser.
B41: Som det fremgår af intervalindelingerne for de tre målepunkter, dækker hvert interval-nummer over tre forskellige intervaller
B42: nemlig ét for hvert af de tre målepunkter. Ved en afvigelse på 9,1 % i målepunkt 1, ender måleren i interval 5. En afvigelse på
B43: 9,1 % i målepunkt 2 betyder derimod, at måleren ender i interval 2.
B44: Vurderingen af stikprøvet laves ud fra summen af målere, der ender i hvert interval-nummer på tværs af de tre målepunkter.
B45: Hver måler tæller altså med i vurderingen med den afvigelse, som giver det laveste interval-nummer af de tre målepunkter.
B46: Hver måler tæller kun med én gang. Hvis måleren f.eks. ender i interval nummer 4 i alle tre målepunkter, tæller måleren
B47: kun som én måler i interval 4 og ikke som tre.
B49: Vurderingen af, hvilket interval hele målerpartiet ender i, laves ud fra et godkendelsestal, der afhænger af partiets størrelse.
B51: Godkendelsestallet er udtryk for en statistisk vurdering af partiet som helhed ud fra stikprøven og er fastsat efter metoden i standarden DS/ISO 2859-1+Cor. 1: 2001 ”Metoder for stikprøveinspektion ved alternativ variation – Del 1". Der er anvendt normal inspektion, inspektionsniveau II og AQL = 4 %. Godkendelsestallet angiver det maksimale antal målere, der ved stikprøvekontrollen må overskride nøjagtighedskravene.
B56: Partiet ender i intervallet med laveste interval-nummer, hvor der er mere end "godkendelsestallet" målere.
B58: Hvis mere end "godkendelsestallet" målere overskrider brugstolerancen (ender i interval nummer 0), skal partiet udskiftes
B59: hurtigst muligt.
B61: 1. stikprøve Ved anvendelse af dobbelt stikprøveplan godkendes partiet efter 1. stikprøve, hvis antallet af målere der overskrider kontrolgrænsen højst er godkendelsestallet for 1. stikprøve. Partiet kan ikke godkendes efter 1. stikprøve, hvis antallet af målere der overskrider kontrolgrænsen mindst er forkastelsestallet for 1. stikprøve, dvs. 2. stikprøve undersøges ikke og partiet nedtages. Er antallet af målere der overskrider kontrolgrænsen ved 1. stikprøve større end godkendelsestallet for 1. stikprøve, men mindre end forkastelsestallet for 1. stikprøve, skal 2. stikprøve udtages, før det kan afgøres, om partiet kan godkendes i det pågældende interval.
B70: Denne vurdering laves for hvert af intervallerne, og man kan derfor efter 1. stikprøve vælge at forlænge partiet ud fra retultatet af 1. stikprøve alene. Hvis man vælger at udtage 2. stikprøve er det muligt, at partiet vil kunne få en længere forlængelse, hvis der er nogle højere intervaller, hvor godkendelsestallet er overskredet, men forkastelsestallet ikke er. Der er dog også mulighed for, at partiet ender med en lavere forlængelse end efter 1. stikprøve, hvis 2. stikprøve er dårlig.
B75: 2. stikprøve Partiet godkendes, hvis det samlede antal målere der overskrider kontrolgrænsen for 1. og 2. stikprøve højst er godkendelsestallet for 2. stikprøve. Partiet kan ikke godkendes, hvis det samlede antal målere, der overskrider kontrolgrænsen for 1. og 2. stikprøve, mindst er forkastelsestallet for 2. stikprøve.
B81: Yderligere metodeforklaring
B82: Yderligere forklaring og eksempel på anvendelse af metoden kan findes i den måletekniske vejledning CLM.VARME.01 afsnit 4.2. Bemærk dog at eksemplet i CLM.VARME.01 kun anvender 3 kontrolgrænser, hvor dette regneark anvender 9.

Sheet Beregninger
D2: Partistørrelse | G2: =Stikprøve!D39 -> 500
D3: 1. stikprøve | G3: =VLOOKUP("Ja",A11:L163,7,FALSE) -> 32 | H3: 2. stikprøve | I3: =VLOOKUP("Ja",A11:L163,10,FALSE) -> 32 | J3: Bemærk: Hvis antallet af kolonner eller rækker i arket ændres, skal nogle af formlerne i række 28 og 120-130 tilpasses manuelt, da der anvendes faste række- og kolonnenumre i formlerne.
D4: ->Godkendelsestal | G4: =VLOOKUP("Ja",A11:L163,8,FALSE) -> 2 | H4: ->Godkendelsestal | I4: =VLOOKUP("Ja",A11:L163,11,FALSE) -> 6
D5: ->Forkastelsestal | G5: =VLOOKUP("Ja",A11:L163,9,FALSE) -> 5 | H5: ->Forkastelsestal | I5: =VLOOKUP("Ja",A11:L163,12,FALSE) -> 7
G7: 1. stikprøve (udføres altid) | J7: 2. stikprøve (udføres hvis 1. stikprøveresultat ikke er entydigt)
C8: Partistørrelse | G8: Stikprøve-størrelse | H8: Godkendelsestal | I8: Forkastelsestal | J8: Stikprøve-størrelse | K8: Godkendelsestal | L8: Forkastelsestal
C9: Det samlede antal målere i partiet | F9: Stikprøvestørrelse 1.+2. | G9: Antal målere heraf der skal stikprøvekon-trolleres i 1. stikprøve | H9: Antal målere i 1. stikprøve som overskrider kontrolgrænserne | J9: Antal målere heraf der skal stikprøve-kontrolleres i 2. stikprøve | K9: Antal målere i 1.+2. stikprøve som overskrider kontrolgrænserne
H10: højst | I10: mindst | K10: højst | L10: mindst
A11: =IF(AND($G$2>(C11-1),$G$2<(E11+1)),"Ja","Nej") -> Nej | C11: =C12-1 -> 90 | D11: - | E11: 90 | F11: 16 | G11: 8 | H11: 0 | I11: 2 | J11: =F11-G11 -> 8 | K11: 1 | L11: 2
A12: =IF(AND($G$2>(C12-1),$G$2<(E12+1)),"Ja","Nej") -> Nej | C12: 91 | D12: - | E12: =C13-1 -> 96 | F12: 17 | G12: 9 | H12: 0 | I12: 2 | J12: 8 | K12: 1 | L12: 2
A13: Nej | C13: 97 | D13: - | E13: 102 | F13: 18 | G13: 9 | H13: 0 | I13: 2 | J13: 9 | K13: 1 | L13: 2
A14: Nej | C14: 103 | D14: - | E14: 108 | F14: 19 | G14: 10 | H14: 0 | I14: 2 | J14: 9 | K14: 1 | L14: 2
A15: Nej | C15: 109 | D15: - | E15: 114 | F15: 20 | G15: 10 | H15: 0 | I15: 2 | J15: 10 | K15: 1 | L15: 2
A16: Nej | C16: 115 | D16: - | E16: 119 | F16: 21 | G16: 11 | H16: 0 | I16: 2 | J16: 10 | K16: 1 | L16: 2 | O16: Intervalgrænser for de tre målepunkter (nedre grænse for intervallet/antal år), [afvigelser i %]
A17: Nej | C17: 120 | D17: - | E17: 120 | F17: 21 | G17: 11 | H17: 0 | I17: 2 | J17: 10 | K17: 1 | L17: 2
A18: Nej | C18: 121 | D18: - | E18: 126 | F18: 22 | G18: 11 | H18: 0 | I18: 2 | J18: 11 | K18: 1 | L18: 2 | O18: Max. Antal År | P18: 9 | Q18: 8 | R18: 7 | S18: 6 | T18: 5 | U18: 4 | V18: 3 | W18: 2 | X18: 1 | Y18: 0
A19: Nej | C19: 127 | D19: - | E19: 132 | F19: 23 | G19: 12 | H19: 0 | I19: 2 | J19: 11 | K19: 1 | L19: 2 | O19: Målepunkt 1 | Q19: 6.3 | R19: =Q19+6.3/8 -> 7.0875 | S19: =R19+6.3/8 -> 7.875 | T19: =S19+6.3/8 -> 8.6625 | U19: 9.45 | V19: 10.2375 | W19: 11.025 | X19: 11.8125 | Y19: 12.6
A20: Nej | C20: 133 | D20: - | E20: 138 | F20: 24 | G20: 12 | H20: 0 | I20: 2 | J20: 12 | K20: 1 | L20: 2 | O20: Målepunkt 2 | Q20: 5 | R20: =Q20+(5/8) -> 5.625 | S20: =R20+(5/8) -> 6.25 | T20: 6.875 | U20: 7.5 | V20: 8.125 | W20: 8.75 | X20: =W20+(5/8) -> 9.375 | Y20: 10
A21: Nej | C21: 139 | D21: - | E21: 144 | F21: 25 | G21: 13 | H21: 0 | I21: 2 | J21: 12 | K21: 1 | L21: 2 | O21: Målepunkt 3 | Q21: 5.2 | R21: =Q21+5.2/8 -> 5.85 | S21: =R21+5.2/8 -> 6.5 | T21: 7.15 | U21: 7.8 | V21: 8.45 | W21: 9.1 | X21: 9.75 | Y21: 10.4
A22: Nej | C22: 145 | D22: - | E22: =C23-1 -> 149 | F22: 26 | G22: 13 | H22: 0 | I22: 2 | J22: 13 | K22: 1 | L22: 2
A23: Nej | C23: 150 | D23: - | E23: 150 | F23: 26 | G23: 13 | H23: 0 | I23: 3 | J23: 13 | K23: 3 | L23: 4 | AS23: Afvigere i interval til graf: | AT23: =(G3+I3)-SUM(AU23:BC23) -> 64 | AU23: =AU27-AV27 -> 0 | AV23: 0 | AW23: 0 | AX23: 0 | AY23: 0 | AZ23: 0 | BA23: 0 | BB23: 0 | BC23: =BC27 -> 0
A24: Nej | C24: 151 | D24: - | E24: =C25-1 -> 159 | F24: 27 | G24: 14 | H24: 0 | I24: 3 | J24: 13 | K24: 3 | L24: 4 | X24: Afvigere i interval til graf: | Y24: =G3-SUM(Z24:AH24) -> 32 | Z24: =Z28-AA28 -> 0 | AA24: =AA28-AB28 -> 0 | AB24: 0 | AC24: 0 | AD24: 0 | AE24: =AE28-AF28 -> 0 | AF24: 0 | AG24: 0 | AH24: 0 | AS24: 2. stikprøve: Optælling af målere i de forskellige intervaller ift. forlængelse (sum af de tre målepunkter)
A25: Nej | C25: 160 | D25: - | E25: =C26-1 -> 168 | F25: 28 | G25: 14 | H25: 0 | I25: 3 | J25: 14 | K25: 3 | L25: 4 | X25: 1. stikprøve: Optælling af målere i de forskellige intervaller ift. forlængelse (sum af de tre målepunkter) | AS25: Maks antal år: | AT25: =IF(MIN(AT26:BC26)>AE26,AE26,MIN(AT26:BC26)) -> 9 | AU25: (kan være begrænset af forkastede intervaller i 1. stikprøve) | BA25: F= | BB25: Forkastet
A26: Nej | C26: 169 | D26: - | E26: 177 | F26: 29 | G26: 15 | H26: 0 | I26: 3 | J26: 14 | K26: 3 | L26: 4 | X26: Maks antal år: | Y26: =MIN(Y27:AH27) -> 9 | AA26: Maks mulige antal år efter 2. stikprøve: | AE26: =MAX(Y27:AH27) -> 9 | AF26: F= | AG26: Forkastet | AS26: År iht. afvigere: | AT26: =IF(AU28>$I$5-1,"F",9) -> 9 | AU26: =IF(AV27>$I$5-1,"F",IF(AU27>$I$4,AU29,"")) ->  | BC26: =IF(BC27>$I$4,BC29,"") -> 
A27: Nej | C27: 178 | D27: - | E27: 187 | F27: 30 | G27: 15 | H27: 0 | I27: 3 | J27: 15 | K27: 3 | L27: 4 | X27: År iht. afvigere: | Y27: =IF(Z28>$G$5-1,"F",9) -> 9 | Z27: =IF(AA28>$G$5-1,"F",IF(Z28>$G$4,Z29,"")) ->  | AH27: =IF(AH28>$G$4,AH29,"") ->  | AS27: 1+2 stikprøve: Antal over grænse: | AT27: =Y28+AT28 -> 64 | AU27: =Z28+AU28 -> 0 | AV27: 0 | AW27: 0 | AX27: 0 | AY27: 0 | AZ27: 0 | BA27: 0 | BB27: 0 | BC27: 0
A28: Nej | C28: 188 | D28: - | E28: 196 | F28: 31 | G28: 16 | H28: 0 | I28: 3 | J28: 15 | K28: 3 | L28: 4 | O28: 1. stikprøve: Absolutte værdier af indtastede afvigelser | X28: Antal over grænse: | Y28: =G3 -> 32 | Z28: =SUM(Z$30:INDIRECT(ADDRESS(29+$G$3,26,1,,"Beregninger"))) -> 0 | AA28: =SUM(AA$30:INDIRECT(ADDRESS(29+$G$3,27,1,,"Beregninger"))) -> 0 | AB28: =SUM(AB$30:INDIRECT(ADDRESS(29+$G$3,28,1,,"Beregninger"))) -> 0 | AC28: =SUM(AC$30:INDIRECT(ADDRESS(29+$G$3,29,1,,"Beregninger"))) -> 0 | AD28: =SUM(AD$30:INDIRECT(ADDRESS(29+$G$3,30,1,,"Beregninger"))) -> 0 | AE28: =SUM(AE$30:INDIRECT(ADDRESS(29+$G$3,31,1,,"Beregninger"))) -> 0 | AF28: =SUM(AF$30:INDIRECT(ADDRESS(29+$G$3,32,1,,"Beregninger"))) -> 0 | AG28: =SUM(AG$30:INDIRECT(ADDRESS(29+$G$3,33,1,,"Beregninger"))) -> 0 | AH28: =SUM(AH$30:INDIRECT(ADDRESS(29+$G$3,34,1,,"Beregninger"))) -> 0 | AJ28: 2. stikprøve: Absolutte værdier af indtastede afvigelser | AS28: Antal over grænse 2. stikprøve: | AT28: =I3 -> 32 | AU28: =SUM(AU$30:INDIRECT(ADDRESS(29+$I$3,47,1,,"Beregninger"))) -> 0 | AV28: =SUM(AV$30:INDIRECT(ADDRESS(29+$I$3,48,1,,"Beregninger"))) -> 0 | AW28: =SUM(AW$30:INDIRECT(ADDRESS(29+$I$3,49,1,,"Beregninger"))) -> 0 | AX28: =SUM(AX$30:INDIRECT(ADDRESS(29+$I$3,50,1,,"Beregninger"))) -> 0 | AY28: =SUM(AY$30:INDIRECT(ADDRESS(29+$I$3,51,1,,"Beregninger"))) -> 0 | AZ28: =SUM(AZ$30:INDIRECT(ADDRESS(29+$I$3,52,1,,"Beregninger"))) -> 0 | BA28: =SUM(BA$30:INDIRECT(ADDRESS(29+$I$3,53,1,,"Beregninger"))) -> 0 | BB28: =SUM(BB$30:INDIRECT(ADDRESS(29+$I$3,54,1,,"Beregninger"))) -> 0 | BC28: =SUM(BC$30:INDIRECT(ADDRESS(29+$I$3,55,1,,"Beregninger"))) -> 0
A29: Nej | C29: 197 | D29: - | E29: 205 | F29: 32 | G29: 16 | H29: 0 | I29: 3 | J29: 16 | K29: 3 | L29: 4 | O29: Afvigelse punkt 1 [%]: | R29: Afvigelse punkt 2 [%]: | U29: Afvigelse punkt 3 [%]: | X29: Maks. mulige år: | Y29: 9 | Z29: 8 | AA29: 7 | AB29: 6 | AC29: 5 | AD29: 4 | AE29: 3 | AF29: 2 | AG29: 1 | AH29: 0 | AJ29: Afvigelse punkt 1 [%]: | AM29: Afvigelse punkt 2 [%]: | AP29: Afvigelse punkt 3 [%]: | AS29: Maks. mulige år: | AT29: 9 | AU29: 8 | AV29: 7 | AW29: 6 | AX29: 5 | AY29: 4 | AZ29: 3 | BA29: 2 | BB29: 1 | BC29: 0
A30: Nej | C30: 206 | D30: - | E30: 215 | F30: 33 | G30: 17 | H30: 0 | I30: 3 | J30: 16 | K30: 3 | L30: 4 | O30: =IF(ISBLANK(Stikprøve!D49)=TRUE,0,ABS(Stikprøve!D49)) -> 0 | R30: =IF(ISBLANK(Stikprøve!E49)=TRUE,0,ABS(Stikprøve!E49)) -> 0 | U30: =IF(ISBLANK(Stikprøve!F49)=TRUE,0,ABS(Stikprøve!F49)) -> 0 | Z30: =IF($O30>Q$19,1,IF($R30>Q$20,1,IF($U30>Q$21,1,""))) ->  | AA30: =IF($O30>R$19,1,IF($R30>R$20,1,IF($U30>R$21,1,""))) ->  | AH30: =IF($O30>Y$19,1,IF($R30>Y$20,1,IF($U30>Y$21,1,""))) ->  | AJ30: =IF(ISBLANK(Stikprøve!L49)=TRUE,0,ABS(Stikprøve!L49)) -> 0 | AM30: =IF(ISBLANK(Stikprøve!M49)=TRUE,0,ABS(Stikprøve!M49)) -> 0 | AP30: =IF(ISBLANK(Stikprøve!N49)=TRUE,0,ABS(Stikprøve!N49)) -> 0 | AU30: =IF($AJ30>Q$19,1,IF($AM30>Q$20,1,IF($AP30>Q$21,1,""))) ->  | AV30: =IF($AJ30>R$19,1,IF($AM30>R$20,1,IF($AP30>R$21,1,""))) ->  | AW30: =IF($AJ30>S$19,1,IF($AM30>S$20,1,IF($AP30>S$21,1,""))) ->  | BC30: =IF($AJ30>Y$19,1,IF($AM30>Y$20,1,IF($AP30>Y$21,1,""))) -> 
A31: Nej | C31: 216 | D31: - | E31: 224 | F31: 34 | G31: 17 | H31: 0 | I31: 3 | J31: 17 | K31: 3 | L31: 4 | O31: =IF(ISBLANK(Stikprøve!D50)=TRUE,0,ABS(Stikprøve!D50)) -> 0 | R31: =IF(ISBLANK(Stikprøve!E50)=TRUE,0,ABS(Stikprøve!E50)) -> 0 | U31: =IF(ISBLANK(Stikprøve!F50)=TRUE,0,ABS(Stikprøve!F50)) -> 0 | Z31: =IF($O31>Q$19,1,IF($R31>Q$20,1,IF($U31>Q$21,1,""))) ->  | AH31: =IF($O31>Y$19,1,IF($R31>Y$20,1,IF($U31>Y$21,1,""))) ->  | AJ31: =IF(ISBLANK(Stikprøve!L50)=TRUE,0,ABS(Stikprøve!L50)) -> 0 | AM31: =IF(ISBLANK(Stikprøve!M50)=TRUE,0,ABS(Stikprøve!M50)) -> 0 | AP31: =IF(ISBLANK(Stikprøve!N50)=TRUE,0,ABS(Stikprøve!N50)) -> 0 | AU31: =IF($AJ31>Q$19,1,IF($AM31>Q$20,1,IF($AP31>Q$21,1,""))) ->  | AV31: =IF($AJ31>R$19,1,IF($AM31>R$20,1,IF($AP31>R$21,1,""))) ->  | BC31: =IF($AJ31>Y$19,1,IF($AM31>Y$20,1,IF($AP31>Y$21,1,""))) -> 
A32: Nej | C32: 225 | D32: - | E32: 233 | F32: 35 | G32: 18 | H32: 0 | I32: 3 | J32: 17 | K32: 3 | L32: 4 | O32: =IF(ISBLANK(Stikprøve!D51)=TRUE,0,ABS(Stikprøve!D51)) -> 0 | R32: =IF(ISBLANK(Stikprøve!E51)=TRUE,0,ABS(Stikprøve!E51)) -> 0 | U32: =IF(ISBLANK(Stikprøve!F51)=TRUE,0,ABS(Stikprøve!F51)) -> 0 | AJ32: =IF(ISBLANK(Stikprøve!L51)=TRUE,0,ABS(Stikprøve!L51)) -> 0 | AM32: =IF(ISBLANK(Stikprøve!M51)=TRUE,0,ABS(Stikprøve!M51)) -> 0 | AP32: =IF(ISBLANK(Stikprøve!N51)=TRUE,0,ABS(Stikprøve!N51)) -> 0
A33: Nej | C33: 234 | D33: - | E33: 242 | F33: 36 | G33: 18 | H33: 0 | I33: 3 | J33: 18 | K33: 3 | L33: 4 | O33: =IF(ISBLANK(Stikprøve!D52)=TRUE,0,ABS(Stikprøve!D52)) -> 0 | R33: =IF(ISBLANK(Stikprøve!E52)=TRUE,0,ABS(Stikprøve!E52)) -> 0 | U33: =IF(ISBLANK(Stikprøve!F52)=TRUE,0,ABS(Stikprøve!F52)) -> 0 | AJ33: =IF(ISBLANK(Stikprøve!L52)=TRUE,0,ABS(Stikprøve!L52)) -> 0 | AM33: =IF(ISBLANK(Stikprøve!M52)=TRUE,0,ABS(Stikprøve!M52)) -> 0 | AP33: =IF(ISBLANK(Stikprøve!N52)=TRUE,0,ABS(Stikprøve!N52)) -> 0 | AV33: =IF($AJ33>R$19,1,IF($AM33>R$20,1,IF($AP33>R$21,1,""))) -> 
A34: Nej | C34: 243 | D34: - | E34: 252 | F34: 37 | G34: 19 | H34: 0 | I34: 3 | J34: 18 | K34: 3 | L34: 4 | O34: =IF(ISBLANK(Stikprøve!D53)=TRUE,0,ABS(Stikprøve!D53)) -> 0 | R34: =IF(ISBLANK(Stikprøve!E53)=TRUE,0,ABS(Stikprøve!E53)) -> 0 | U34: =IF(ISBLANK(Stikprøve!F53)=TRUE,0,ABS(Stikprøve!F53)) -> 0 | AB34: =IF($O34>S$19,1,IF($R34>S$20,1,IF($U34>S$21,1,""))) ->  | AJ34: =IF(ISBLANK(Stikprøve!L53)=TRUE,0,ABS(Stikprøve!L53)) -> 0 | AM34: =IF(ISBLANK(Stikprøve!M53)=TRUE,0,ABS(Stikprøve!M53)) -> 0 | AP34: =IF(ISBLANK(Stikprøve!N53)=TRUE,0,ABS(Stikprøve!N53)) -> 0
A35: Nej | C35: 253 | D35: - | E35: 261 | F35: 38 | G35: 19 | H35: 0 | I35: 3 | J35: 19 | K35: 3 | L35: 4 | O35: =IF(ISBLANK(Stikprøve!D54)=TRUE,0,ABS(Stikprøve!D54)) -> 0 | R35: =IF(ISBLANK(Stikprøve!E54)=TRUE,0,ABS(Stikprøve!E54)) -> 0 | U35: =IF(ISBLANK(Stikprøve!F54)=TRUE,0,ABS(Stikprøve!F54)) -> 0 | AJ35: =IF(ISBLANK(Stikprøve!L54)=TRUE,0,ABS(Stikprøve!L54)) -> 0 | AM35: =IF(ISBLANK(Stikprøve!M54)=TRUE,0,ABS(Stikprøve!M54)) -> 0 | AP35: =IF(ISBLANK(Stikprøve!N54)=TRUE,0,ABS(Stikprøve!N54)) -> 0
A36: Nej | C36: 262 | D36: - | E36: 270 | F36: 39 | G36: 20 | H36: 0 | I36: 3 | J36: 19 | K36: 3 | L36: 4 | O36: =IF(ISBLANK(Stikprøve!D55)=TRUE,0,ABS(Stikprøve!D55)) -> 0 | R36: =IF(ISBLANK(Stikprøve!E55)=TRUE,0,ABS(Stikprøve!E55)) -> 0 | U36: =IF(ISBLANK(Stikprøve!F55)=TRUE,0,ABS(Stikprøve!F55)) -> 0 | AJ36: =IF(ISBLANK(Stikprøve!L55)=TRUE,0,ABS(Stikprøve!L55)) -> 0 | AM36: =IF(ISBLANK(Stikprøve!M55)=TRUE,0,ABS(Stikprøve!M55)) -> 0 | AP36: =IF(ISBLANK(Stikprøve!N55)=TRUE,0,ABS(Stikprøve!N55)) -> 0
A37: Nej | C37: 271 | D37: - | E37: 279 | F37: 40 | G37: 20 | H37: 0 | I37: 3 | J37: 20 | K37: 3 | L37: 4 | O37: =IF(ISBLANK(Stikprøve!D56)=TRUE,0,ABS(Stikprøve!D56)) -> 0 | R37: =IF(ISBLANK(Stikprøve!E56)=TRUE,0,ABS(Stikprøve!E56)) -> 0 | U37: =IF(ISBLANK(Stikprøve!F56)=TRUE,0,ABS(Stikprøve!F56)) -> 0 | AJ37: =IF(ISBLANK(Stikprøve!L56)=TRUE,0,ABS(Stikprøve!L56)) -> 0 | AM37: =IF(ISBLANK(Stikprøve!M56)=TRUE,0,ABS(Stikprøve!M56)) -> 0 | AP37: =IF(ISBLANK(Stikprøve!N56)=TRUE,0,ABS(Stikprøve!N56)) -> 0
A38: Nej | C38: 280 | D38: - | E38: 280 | F38: 40 | G38: 20 | H38: 1 | I38: 3 | J38: 20 | K38: 4 | L38: 5 | O38: =IF(ISBLANK(Stikprøve!D57)=TRUE,0,ABS(Stikprøve!D57)) -> 0 | R38: =IF(ISBLANK(Stikprøve!E57)=TRUE,0,ABS(Stikprøve!E57)) -> 0 | U38: =IF(ISBLANK(Stikprøve!F57)=TRUE,0,ABS(Stikprøve!F57)) -> 0 | Z38: =IF($O38>Q$19,1,IF($R38>Q$20,1,IF($U38>Q$21,1,""))) ->  | AJ38: =IF(ISBLANK(Stikprøve!L57)=TRUE,0,ABS(Stikprøve!L57)) -> 0 | AM38: =IF(ISBLANK(Stikprøve!M57)=TRUE,0,ABS(Stikprøve!M57)) -> 0 | AP38: =IF(ISBLANK(Stikprøve!N57)=TRUE,0,ABS(Stikprøve!N57)) -> 0
A39: Nej | C39: 281 | D39: - | E39: 289 | F39: 41 | G39: 21 | H39: 1 | I39: 3 | J39: 20 | K39: 4 | L39: 5 | O39: =IF(ISBLANK(Stikprøve!D58)=TRUE,0,ABS(Stikprøve!D58)) -> 0 | R39: =IF(ISBLANK(Stikprøve!E58)=TRUE,0,ABS(Stikprøve!E58)) -> 0 | U39: =IF(ISBLANK(Stikprøve!F58)=TRUE,0,ABS(Stikprøve!F58)) -> 0 | AJ39: =IF(ISBLANK(Stikprøve!L58)=TRUE,0,ABS(Stikprøve!L58)) -> 0 | AM39: =IF(ISBLANK(Stikprøve!M58)=TRUE,0,ABS(Stikprøve!M58)) -> 0 | AP39: =IF(ISBLANK(Stikprøve!N58)=TRUE,0,ABS(Stikprøve!N58)) -> 0
A40: Nej | C40: 290 | D40: - | E40: 298 | F40: 42 | G40: 21 | H40: 1 | I40: 3 | J40: 21 | K40: 4 | L40: 5 | O40: =IF(ISBLANK(Stikprøve!D59)=TRUE,0,ABS(Stikprøve!D59)) -> 0 | R40: =IF(ISBLANK(Stikprøve!E59)=TRUE,0,ABS(Stikprøve!E59)) -> 0 | U40: =IF(ISBLANK(Stikprøve!F59)=TRUE,0,ABS(Stikprøve!F59)) -> 0 | AJ40: =IF(ISBLANK(Stikprøve!L59)=TRUE,0,ABS(Stikprøve!L59)) -> 0 | AM40: =IF(ISBLANK(Stikprøve!M59)=TRUE,0,ABS(Stikprøve!M59)) -> 0 | AP40: =IF(ISBLANK(Stikprøve!N59)=TRUE,0,ABS(Stikprøve!N59)) -> 0
A41: Nej | C41: 299 | D41: - | E41: 307 | F41: 43 | G41: 22 | H41: 1 | I41: 3 | J41: 21 | K41: 4 | L41: 5 | O41: =IF(ISBLANK(Stikprøve!D60)=TRUE,0,ABS(Stikprøve!D60)) -> 0 | R41: =IF(ISBLANK(Stikprøve!E60)=TRUE,0,ABS(Stikprøve!E60)) -> 0 | U41: =IF(ISBLANK(Stikprøve!F60)=TRUE,0,ABS(Stikprøve!F60)) -> 0 | AJ41: =IF(ISBLANK(Stikprøve!L60)=TRUE,0,ABS(Stikprøve!L60)) -> 0 | AM41: =IF(ISBLANK(Stikprøve!M60)=TRUE,0,ABS(Stikprøve!M60)) -> 0 | AP41: =IF(ISBLANK(Stikprøve!N60)=TRUE,0,ABS(Stikprøve!N60)) -> 0
A42: Nej | C42: 308 | D42: - | E42: 316 | F42: 44 | G42: 22 | H42: 1 | I42: 3 | J42: 22 | K42: 4 | L42: 5 | O42: =IF(ISBLANK(Stikprøve!D61)=TRUE,0,ABS(Stikprøve!D61)) -> 0 | R42: =IF(ISBLANK(Stikprøve!E61)=TRUE,0,ABS(Stikprøve!E61)) -> 0 | U42: =IF(ISBLANK(Stikprøve!F61)=TRUE,0,ABS(Stikprøve!F61)) -> 0 | AJ42: =IF(ISBLANK(Stikprøve!L61)=TRUE,0,ABS(Stikprøve!L61)) -> 0 | AM42: =IF(ISBLANK(Stikprøve!M61)=TRUE,0,ABS(Stikprøve!M61)) -> 0 | AP42: =IF(ISBLANK(Stikprøve!N61)=TRUE,0,ABS(Stikprøve!N61)) -> 0
A43: Nej | C43: 317 | D43: - | E43: 325 | F43: 45 | G43: 23 | H43: 1 | I43: 3 | J43: =F43-G43 -> 22 | K43: 4 | L43: 5 | O43: =IF(ISBLANK(Stikprøve!D62)=TRUE,0,ABS(Stikprøve!D62)) -> 0 | R43: =IF(ISBLANK(Stikprøve!E62)=TRUE,0,ABS(Stikprøve!E62)) -> 0 | U43: =IF(ISBLANK(Stikprøve!F62)=TRUE,0,ABS(Stikprøve!F62)) -> 0 | AJ43: =IF(ISBLANK(Stikprøve!L62)=TRUE,0,ABS(Stikprøve!L62)) -> 0 | AM43: =IF(ISBLANK(Stikprøve!M62)=TRUE,0,ABS(Stikprøve!M62)) -> 0 | AP43: =IF(ISBLANK(Stikprøve!N62)=TRUE,0,ABS(Stikprøve!N62)) -> 0
A44: Nej | C44: 326 | D44: - | E44: 335 | F44: 46 | G44: 23 | H44: 1 | I44: 3 | J44: 23 | K44: 4 | L44: 5 | O44: =IF(ISBLANK(Stikprøve!D63)=TRUE,0,ABS(Stikprøve!D63)) -> 0 | R44: =IF(ISBLANK(Stikprøve!E63)=TRUE,0,ABS(Stikprøve!E63)) -> 0 | U44: =IF(ISBLANK(Stikprøve!F63)=TRUE,0,ABS(Stikprøve!F63)) -> 0 | AJ44: =IF(ISBLANK(Stikprøve!L63)=TRUE,0,ABS(Stikprøve!L63)) -> 0 | AM44: =IF(ISBLANK(Stikprøve!M63)=TRUE,0,ABS(Stikprøve!M63)) -> 0 | AP44: =IF(ISBLANK(Stikprøve!N63)=TRUE,0,ABS(Stikprøve!N63)) -> 0
A45: Nej | C45: 336 | D45: - | E45: 344 | F45: 47 | G45: 24 | H45: 1 | I45: 3 | J45: 23 | K45: 4 | L45: 5 | O45: =IF(ISBLANK(Stikprøve!D64)=TRUE,0,ABS(Stikprøve!D64)) -> 0 | R45: =IF(ISBLANK(Stikprøve!E64)=TRUE,0,ABS(Stikprøve!E64)) -> 0 | U45: =IF(ISBLANK(Stikprøve!F64)=TRUE,0,ABS(Stikprøve!F64)) -> 0 | AJ45: =IF(ISBLANK(Stikprøve!L64)=TRUE,0,ABS(Stikprøve!L64)) -> 0 | AM45: =IF(ISBLANK(Stikprøve!M64)=TRUE,0,ABS(Stikprøve!M64)) -> 0 | AP45: =IF(ISBLANK(Stikprøve!N64)=TRUE,0,ABS(Stikprøve!N64)) -> 0
A46: Nej | C46: 345 | D46: - | E46: 353 | F46: 48 | G46: 24 | H46: 1 | I46: 3 | J46: 24 | K46: 4 | L46: 5 | O46: =IF(ISBLANK(Stikprøve!D65)=TRUE,0,ABS(Stikprøve!D65)) -> 0 | R46: =IF(ISBLANK(Stikprøve!E65)=TRUE,0,ABS(Stikprøve!E65)) -> 0 | U46: =IF(ISBLANK(Stikprøve!F65)=TRUE,0,ABS(Stikprøve!F65)) -> 0 | AE46: =IF($O46>V$19,1,IF($R46>V$20,1,IF($U46>V$21,1,""))) ->  | AJ46: =IF(ISBLANK(Stikprøve!L65)=TRUE,0,ABS(Stikprøve!L65)) -> 0 | AM46: =IF(ISBLANK(Stikprøve!M65)=TRUE,0,ABS(Stikprøve!M65)) -> 0 | AP46: =IF(ISBLANK(Stikprøve!N65)=TRUE,0,ABS(Stikprøve!N65)) -> 0 | BA46: =IF($AJ46>W$19,1,IF($AM46>W$20,1,IF($AP46>W$21,1,""))) -> 
A47: Nej | C47: 354 | D47: - | E47: 362 | F47: 49 | G47: 25 | H47: 1 | I47: 3 | J47: 24 | K47: 4 | L47: 5 | O47: =IF(ISBLANK(Stikprøve!D66)=TRUE,0,ABS(Stikprøve!D66)) -> 0 | R47: =IF(ISBLANK(Stikprøve!E66)=TRUE,0,ABS(Stikprøve!E66)) -> 0 | U47: =IF(ISBLANK(Stikprøve!F66)=TRUE,0,ABS(Stikprøve!F66)) -> 0 | AJ47: =IF(ISBLANK(Stikprøve!L66)=TRUE,0,ABS(Stikprøve!L66)) -> 0 | AM47: =IF(ISBLANK(Stikprøve!M66)=TRUE,0,ABS(Stikprøve!M66)) -> 0 | AP47: =IF(ISBLANK(Stikprøve!N66)=TRUE,0,ABS(Stikprøve!N66)) -> 0
A48: Nej | C48: 363 | D48: - | E48: 371 | F48: 50 | G48: 25 | H48: 1 | I48: 3 | J48: 25 | K48: 4 | L48: 5 | O48: =IF(ISBLANK(Stikprøve!D67)=TRUE,0,ABS(Stikprøve!D67)) -> 0 | R48: =IF(ISBLANK(Stikprøve!E67)=TRUE,0,ABS(Stikprøve!E67)) -> 0 | U48: =IF(ISBLANK(Stikprøve!F67)=TRUE,0,ABS(Stikprøve!F67)) -> 0 | AJ48: =IF(ISBLANK(Stikprøve!L67)=TRUE,0,ABS(Stikprøve!L67)) -> 0 | AM48: =IF(ISBLANK(Stikprøve!M67)=TRUE,0,ABS(Stikprøve!M67)) -> 0 | AP48: =IF(ISBLANK(Stikprøve!N67)=TRUE,0,ABS(Stikprøve!N67)) -> 0
A49: Nej | C49: 372 | D49: - | E49: 380 | F49: 51 | G49: 26 | H49: 1 | I49: 3 | J49: 25 | K49: 4 | L49: 5 | O49: =IF(ISBLANK(Stikprøve!D68)=TRUE,0,ABS(Stikprøve!D68)) -> 0 | R49: =IF(ISBLANK(Stikprøve!E68)=TRUE,0,ABS(Stikprøve!E68)) -> 0 | U49: =IF(ISBLANK(Stikprøve!F68)=TRUE,0,ABS(Stikprøve!F68)) -> 0 | AJ49: =IF(ISBLANK(Stikprøve!L68)=TRUE,0,ABS(Stikprøve!L68)) -> 0 | AM49: =IF(ISBLANK(Stikprøve!M68)=TRUE,0,ABS(Stikprøve!M68)) -> 0 | AP49: =IF(ISBLANK(Stikprøve!N68)=TRUE,0,ABS(Stikprøve!N68)) -> 0
A50: Nej | C50: 381 | D50: - | E50: 389 | F50: 52 | G50: 26 | H50: 1 | I50: 3 | J50: 26 | K50: 4 | L50: 5 | O50: =IF(ISBLANK(Stikprøve!D69)=TRUE,0,ABS(Stikprøve!D69)) -> 0 | R50: =IF(ISBLANK(Stikprøve!E69)=TRUE,0,ABS(Stikprøve!E69)) -> 0 | U50: =IF(ISBLANK(Stikprøve!F69)=TRUE,0,ABS(Stikprøve!F69)) -> 0 | AJ50: =IF(ISBLANK(Stikprøve!L69)=TRUE,0,ABS(Stikprøve!L69)) -> 0 | AM50: =IF(ISBLANK(Stikprøve!M69)=TRUE,0,ABS(Stikprøve!M69)) -> 0 | AP50: =IF(ISBLANK(Stikprøve!N69)=TRUE,0,ABS(Stikprøve!N69)) -> 0
A51: Nej | C51: 390 | D51: - | E51: 390 | F51: 52 | G51: 26 | H51: 1 | I51: 4 | J51: 26 | K51: 5 | L51: 6 | O51: =IF(ISBLANK(Stikprøve!D70)=TRUE,0,ABS(Stikprøve!D70)) -> 0 | R51: =IF(ISBLANK(Stikprøve!E70)=TRUE,0,ABS(Stikprøve!E70)) -> 0 | U51: =IF(ISBLANK(Stikprøve!F70)=TRUE,0,ABS(Stikprøve!F70)) -> 0 | AJ51: =IF(ISBLANK(Stikprøve!L70)=TRUE,0,ABS(Stikprøve!L70)) -> 0 | AM51: =IF(ISBLANK(Stikprøve!M70)=TRUE,0,ABS(Stikprøve!M70)) -> 0 | AP51: =IF(ISBLANK(Stikprøve!N70)=TRUE,0,ABS(Stikprøve!N70)) -> 0
A52: Nej | C52: 391 | D52: - | E52: 399 | F52: 53 | G52: 27 | H52: 1 | I52: 4 | J52: 26 | K52: 5 | L52: 6 | O52: =IF(ISBLANK(Stikprøve!D71)=TRUE,0,ABS(Stikprøve!D71)) -> 0 | R52: =IF(ISBLANK(Stikprøve!E71)=TRUE,0,ABS(Stikprøve!E71)) -> 0 | U52: =IF(ISBLANK(Stikprøve!F71)=TRUE,0,ABS(Stikprøve!F71)) -> 0 | AJ52: =IF(ISBLANK(Stikprøve!L71)=TRUE,0,ABS(Stikprøve!L71)) -> 0 | AM52: =IF(ISBLANK(Stikprøve!M71)=TRUE,0,ABS(Stikprøve!M71)) -> 0 | AP52: =IF(ISBLANK(Stikprøve!N71)=TRUE,0,ABS(Stikprøve!N71)) -> 0
A53: Nej | C53: 400 | D53: - | E53: 408 | F53: 54 | G53: 27 | H53: 1 | I53: 4 | J53: 27 | K53: 5 | L53: 6 | O53: =IF(ISBLANK(Stikprøve!D72)=TRUE,0,ABS(Stikprøve!D72)) -> 0 | R53: =IF(ISBLANK(Stikprøve!E72)=TRUE,0,ABS(Stikprøve!E72)) -> 0 | U53: =IF(ISBLANK(Stikprøve!F72)=TRUE,0,ABS(Stikprøve!F72)) -> 0 | AJ53: =IF(ISBLANK(Stikprøve!L72)=TRUE,0,ABS(Stikprøve!L72)) -> 0 | AM53: =IF(ISBLANK(Stikprøve!M72)=TRUE,0,ABS(Stikprøve!M72)) -> 0 | AP53: =IF(ISBLANK(Stikprøve!N72)=TRUE,0,ABS(Stikprøve!N72)) -> 0
A54: Nej | C54: 409 | D54: - | E54: 417 | F54: 55 | G54: 28 | H54: 1 | I54: 4 | J54: 27 | K54: 5 | L54: 6 | O54: =IF(ISBLANK(Stikprøve!D73)=TRUE,0,ABS(Stikprøve!D73)) -> 0 | R54: =IF(ISBLANK(Stikprøve!E73)=TRUE,0,ABS(Stikprøve!E73)) -> 0 | U54: =IF(ISBLANK(Stikprøve!F73)=TRUE,0,ABS(Stikprøve!F73)) -> 0 | AJ54: =IF(ISBLANK(Stikprøve!L73)=TRUE,0,ABS(Stikprøve!L73)) -> 0 | AM54: =IF(ISBLANK(Stikprøve!M73)=TRUE,0,ABS(Stikprøve!M73)) -> 0 | AP54: =IF(ISBLANK(Stikprøve!N73)=TRUE,0,ABS(Stikprøve!N73)) -> 0
A55: Nej | C55: 418 | D55: - | E55: 426 | F55: 56 | G55: 28 | H55: 1 | I55: 4 | J55: 28 | K55: 5 | L55: 6 | O55: =IF(ISBLANK(Stikprøve!D74)=TRUE,0,ABS(Stikprøve!D74)) -> 0 | R55: =IF(ISBLANK(Stikprøve!E74)=TRUE,0,ABS(Stikprøve!E74)) -> 0 | U55: =IF(ISBLANK(Stikprøve!F74)=TRUE,0,ABS(Stikprøve!F74)) -> 0 | AJ55: =IF(ISBLANK(Stikprøve!L74)=TRUE,0,ABS(Stikprøve!L74)) -> 0 | AM55: =IF(ISBLANK(Stikprøve!M74)=TRUE,0,ABS(Stikprøve!M74)) -> 0 | AP55: =IF(ISBLANK(Stikprøve!N74)=TRUE,0,ABS(Stikprøve!N74)) -> 0
A56: Nej | C56: 427 | D56: - | E56: 435 | F56: 57 | G56: 29 | H56: 1 | I56: 4 | J56: 28 | K56: 5 | L56: 6 | O56: =IF(ISBLANK(Stikprøve!D75)=TRUE,0,ABS(Stikprøve!D75)) -> 0 | R56: =IF(ISBLANK(Stikprøve!E75)=TRUE,0,ABS(Stikprøve!E75)) -> 0 | U56: =IF(ISBLANK(Stikprøve!F75)=TRUE,0,ABS(Stikprøve!F75)) -> 0 | AJ56: =IF(ISBLANK(Stikprøve!L75)=TRUE,0,ABS(Stikprøve!L75)) -> 0 | AM56: =IF(ISBLANK(Stikprøve!M75)=TRUE,0,ABS(Stikprøve!M75)) -> 0 | AP56: =IF(ISBLANK(Stikprøve!N75)=TRUE,0,ABS(Stikprøve!N75)) -> 0
A57: Nej | C57: 436 | D57: - | E57: 445 | F57: 58 | G57: 29 | H57: 1 | I57: 4 | J57: 29 | K57: 5 | L57: 6 | O57: =IF(ISBLANK(Stikprøve!D76)=TRUE,0,ABS(Stikprøve!D76)) -> 0 | R57: =IF(ISBLANK(Stikprøve!E76)=TRUE,0,ABS(Stikprøve!E76)) -> 0 | U57: =IF(ISBLANK(Stikprøve!F76)=TRUE,0,ABS(Stikprøve!F76)) -> 0 | AJ57: =IF(ISBLANK(Stikprøve!L76)=TRUE,0,ABS(Stikprøve!L76)) -> 0 | AM57: =IF(ISBLANK(Stikprøve!M76)=TRUE,0,ABS(Stikprøve!M76)) -> 0 | AP57: =IF(ISBLANK(Stikprøve!N76)=TRUE,0,ABS(Stikprøve!N76)) -> 0
A58: Nej | C58: 446 | D58: - | E58: 454 | F58: 59 | G58: 30 | H58: 1 | I58: 4 | J58: 29 | K58: 5 | L58: 6 | O58: =IF(ISBLANK(Stikprøve!D77)=TRUE,0,ABS(Stikprøve!D77)) -> 0 | R58: =IF(ISBLANK(Stikprøve!E77)=TRUE,0,ABS(Stikprøve!E77)) -> 0 | U58: =IF(ISBLANK(Stikprøve!F77)=TRUE,0,ABS(Stikprøve!F77)) -> 0 | AJ58: =IF(ISBLANK(Stikprøve!L77)=TRUE,0,ABS(Stikprøve!L77)) -> 0 | AM58: =IF(ISBLANK(Stikprøve!M77)=TRUE,0,ABS(Stikprøve!M77)) -> 0 | AP58: =IF(ISBLANK(Stikprøve!N77)=TRUE,0,ABS(Stikprøve!N77)) -> 0
A59: Nej | C59: 455 | D59: - | E59: 463 | F59: 60 | G59: 30 | H59: 1 | I59: 4 | J59: 30 | K59: 5 | L59: 6 | O59: =IF(ISBLANK(Stikprøve!D78)=TRUE,0,ABS(Stikprøve!D78)) -> 0 | R59: =IF(ISBLANK(Stikprøve!E78)=TRUE,0,ABS(Stikprøve!E78)) -> 0 | U59: =IF(ISBLANK(Stikprøve!F78)=TRUE,0,ABS(Stikprøve!F78)) -> 0 | AJ59: =IF(ISBLANK(Stikprøve!L78)=TRUE,0,ABS(Stikprøve!L78)) -> 0 | AM59: =IF(ISBLANK(Stikprøve!M78)=TRUE,0,ABS(Stikprøve!M78)) -> 0 | AP59: =IF(ISBLANK(Stikprøve!N78)=TRUE,0,ABS(Stikprøve!N78)) -> 0
A60: Nej | C60: 464 | D60: - | E60: 472 | F60: 61 | G60: 31 | H60: 1 | I60: 4 | J60: 30 | K60: 5 | L60: 6 | O60: =IF(ISBLANK(Stikprøve!D79)=TRUE,0,ABS(Stikprøve!D79)) -> 0 | R60: =IF(ISBLANK(Stikprøve!E79)=TRUE,0,ABS(Stikprøve!E79)) -> 0 | U60: =IF(ISBLANK(Stikprøve!F79)=TRUE,0,ABS(Stikprøve!F79)) -> 0 | AJ60: =IF(ISBLANK(Stikprøve!L79)=TRUE,0,ABS(Stikprøve!L79)) -> 0 | AM60: =IF(ISBLANK(Stikprøve!M79)=TRUE,0,ABS(Stikprøve!M79)) -> 0 | AP60: =IF(ISBLANK(Stikprøve!N79)=TRUE,0,ABS(Stikprøve!N79)) -> 0
A61: Nej | C61: 473 | D61: - | E61: 481 | F61: 62 | G61: 31 | H61: 1 | I61: 4 | J61: 31 | K61: 5 | L61: 6 | O61: =IF(ISBLANK(Stikprøve!D80)=TRUE,0,ABS(Stikprøve!D80)) -> 0 | R61: =IF(ISBLANK(Stikprøve!E80)=TRUE,0,ABS(Stikprøve!E80)) -> 0 | U61: =IF(ISBLANK(Stikprøve!F80)=TRUE,0,ABS(Stikprøve!F80)) -> 0 | AJ61: =IF(ISBLANK(Stikprøve!L80)=TRUE,0,ABS(Stikprøve!L80)) -> 0 | AM61: =IF(ISBLANK(Stikprøve!M80)=TRUE,0,ABS(Stikprøve!M80)) -> 0 | AP61: =IF(ISBLANK(Stikprøve!N80)=TRUE,0,ABS(Stikprøve!N80)) -> 0
A62: Nej | C62: 482 | D62: - | E62: 490 | F62: 63 | G62: 32 | H62: 1 | I62: 4 | J62: 31 | K62: 5 | L62: 6 | O62: =IF(ISBLANK(Stikprøve!D81)=TRUE,0,ABS(Stikprøve!D81)) -> 0 | R62: =IF(ISBLANK(Stikprøve!E81)=TRUE,0,ABS(Stikprøve!E81)) -> 0 | U62: =IF(ISBLANK(Stikprøve!F81)=TRUE,0,ABS(Stikprøve!F81)) -> 0 | AJ62: =IF(ISBLANK(Stikprøve!L81)=TRUE,0,ABS(Stikprøve!L81)) -> 0 | AM62: =IF(ISBLANK(Stikprøve!M81)=TRUE,0,ABS(Stikprøve!M81)) -> 0 | AP62: =IF(ISBLANK(Stikprøve!N81)=TRUE,0,ABS(Stikprøve!N81)) -> 0
A63: Nej | C63: 491 | D63: - | E63: 499 | F63: 64 | G63: 32 | H63: 1 | I63: 4 | J63: 32 | K63: 5 | L63: 6 | O63: =IF(ISBLANK(Stikprøve!D82)=TRUE,0,ABS(Stikprøve!D82)) -> 0 | R63: =IF(ISBLANK(Stikprøve!E82)=TRUE,0,ABS(Stikprøve!E82)) -> 0 | U63: =IF(ISBLANK(Stikprøve!F82)=TRUE,0,ABS(Stikprøve!F82)) -> 0 | AJ63: =IF(ISBLANK(Stikprøve!L82)=TRUE,0,ABS(Stikprøve!L82)) -> 0 | AM63: =IF(ISBLANK(Stikprøve!M82)=TRUE,0,ABS(Stikprøve!M82)) -> 0 | AP63: =IF(ISBLANK(Stikprøve!N82)=TRUE,0,ABS(Stikprøve!N82)) -> 0
A64: Ja | C64: 500 | D64: - | E64: 500 | F64: 64 | G64: 32 | H64: 2 | I64: 5 | J64: 32 | K64: 6 | L64: 7 | O64: =IF(ISBLANK(Stikprøve!D83)=TRUE,0,ABS(Stikprøve!D83)) -> 0 | R64: =IF(ISBLANK(Stikprøve!E83)=TRUE,0,ABS(Stikprøve!E83)) -> 0 | U64: =IF(ISBLANK(Stikprøve!F83)=TRUE,0,ABS(Stikprøve!F83)) -> 0 | AJ64: =IF(ISBLANK(Stikprøve!L83)=TRUE,0,ABS(Stikprøve!L83)) -> 0 | AM64: =IF(ISBLANK(Stikprøve!M83)=TRUE,0,ABS(Stikprøve!M83)) -> 0 | AP64: =IF(ISBLANK(Stikprøve!N83)=TRUE,0,ABS(Stikprøve!N83)) -> 0
A65: Nej | C65: 501 | D65: - | E65: 519 | F65: 65 | G65: 33 | H65: 2 | I65: 5 | J65: 32 | K65: 6 | L65: 7 | O65: =IF(ISBLANK(Stikprøve!D84)=TRUE,0,ABS(Stikprøve!D84)) -> 0 | R65: =IF(ISBLANK(Stikprøve!E84)=TRUE,0,ABS(Stikprøve!E84)) -> 0 | U65: =IF(ISBLANK(Stikprøve!F84)=TRUE,0,ABS(Stikprøve!F84)) -> 0 | AJ65: =IF(ISBLANK(Stikprøve!L84)=TRUE,0,ABS(Stikprøve!L84)) -> 0 | AM65: =IF(ISBLANK(Stikprøve!M84)=TRUE,0,ABS(Stikprøve!M84)) -> 0 | AP65: =IF(ISBLANK(Stikprøve!N84)=TRUE,0,ABS(Stikprøve!N84)) -> 0
A66: Nej | C66: 520 | D66: - | E66: 538 | F66: 66 | G66: 33 | H66: 2 | I66: 5 | J66: 33 | K66: 6 | L66: 7 | O66: =IF(ISBLANK(Stikprøve!D85)=TRUE,0,ABS(Stikprøve!D85)) -> 0 | R66: =IF(ISBLANK(Stikprøve!E85)=TRUE,0,ABS(Stikprøve!E85)) -> 0 | U66: =IF(ISBLANK(Stikprøve!F85)=TRUE,0,ABS(Stikprøve!F85)) -> 0 | AJ66: =IF(ISBLANK(Stikprøve!L85)=TRUE,0,ABS(Stikprøve!L85)) -> 0 | AM66: =IF(ISBLANK(Stikprøve!M85)=TRUE,0,ABS(Stikprøve!M85)) -> 0 | AP66: =IF(ISBLANK(Stikprøve!N85)=TRUE,0,ABS(Stikprøve!N85)) -> 0
A67: Nej | C67: 539 | D67: - | E67: 558 | F67: 67 | G67: 34 | H67: 2 | I67: 5 | J67: 33 | K67: 6 | L67: 7 | O67: =IF(ISBLANK(Stikprøve!D86)=TRUE,0,ABS(Stikprøve!D86)) -> 0 | R67: =IF(ISBLANK(Stikprøve!E86)=TRUE,0,ABS(Stikprøve!E86)) -> 0 | U67: =IF(ISBLANK(Stikprøve!F86)=TRUE,0,ABS(Stikprøve!F86)) -> 0 | AJ67: =IF(ISBLANK(Stikprøve!L86)=TRUE,0,ABS(Stikprøve!L86)) -> 0 | AM67: =IF(ISBLANK(Stikprøve!M86)=TRUE,0,ABS(Stikprøve!M86)) -> 0 | AP67: =IF(ISBLANK(Stikprøve!N86)=TRUE,0,ABS(Stikprøve!N86)) -> 0
A68: Nej | C68: 559 | D68: - | E68: 577 | F68: 68 | G68: 34 | H68: 2 | I68: 5 | J68: 34 | K68: 6 | L68: 7 | O68: =IF(ISBLANK(Stikprøve!D87)=TRUE,0,ABS(Stikprøve!D87)) -> 0 | R68: =IF(ISBLANK(Stikprøve!E87)=TRUE,0,ABS(Stikprøve!E87)) -> 0 | U68: =IF(ISBLANK(Stikprøve!F87)=TRUE,0,ABS(Stikprøve!F87)) -> 0 | AJ68: =IF(ISBLANK(Stikprøve!L87)=TRUE,0,ABS(Stikprøve!L87)) -> 0 | AM68: =IF(ISBLANK(Stikprøve!M87)=TRUE,0,ABS(Stikprøve!M87)) -> 0 | AP68: =IF(ISBLANK(Stikprøve!N87)=TRUE,0,ABS(Stikprøve!N87)) -> 0
A69: Nej | C69: 578 | D69: - | E69: 597 | F69: 69 | G69: 35 | H69: 2 | I69: 5 | J69: 34 | K69: 6 | L69: 7 | O69: =IF(ISBLANK(Stikprøve!D88)=TRUE,0,ABS(Stikprøve!D88)) -> 0 | R69: =IF(ISBLANK(Stikprøve!E88)=TRUE,0,ABS(Stikprøve!E88)) -> 0 | U69: =IF(ISBLANK(Stikprøve!F88)=TRUE,0,ABS(Stikprøve!F88)) -> 0 | AJ69: =IF(ISBLANK(Stikprøve!L88)=TRUE,0,ABS(Stikprøve!L88)) -> 0 | AM69: =IF(ISBLANK(Stikprøve!M88)=TRUE,0,ABS(Stikprøve!M88)) -> 0 | AP69: =IF(ISBLANK(Stikprøve!N88)=TRUE,0,ABS(Stikprøve!N88)) -> 0
A70: Nej | C70: 598 | D70: - | E70: 616 | F70: 70 | G70: 35 | H70: 2 | I70: 5 | J70: 35 | K70: 6 | L70: 7 | O70: =IF(ISBLANK(Stikprøve!D89)=TRUE,0,ABS(Stikprøve!D89)) -> 0 | R70: =IF(ISBLANK(Stikprøve!E89)=TRUE,0,ABS(Stikprøve!E89)) -> 0 | U70: =IF(ISBLANK(Stikprøve!F89)=TRUE,0,ABS(Stikprøve!F89)) -> 0 | AJ70: =IF(ISBLANK(Stikprøve!L89)=TRUE,0,ABS(Stikprøve!L89)) -> 0 | AM70: =IF(ISBLANK(Stikprøve!M89)=TRUE,0,ABS(Stikprøve!M89)) -> 0 | AP70: =IF(ISBLANK(Stikprøve!N89)=TRUE,0,ABS(Stikprøve!N89)) -> 0
A71: Nej | C71: 617 | D71: - | E71: 636 | F71: 71 | G71: 36 | H71: 2 | I71: 5 | J71: 35 | K71: 6 | L71: 7 | O71: =IF(ISBLANK(Stikprøve!D90)=TRUE,0,ABS(Stikprøve!D90)) -> 0 | R71: =IF(ISBLANK(Stikprøve!E90)=TRUE,0,ABS(Stikprøve!E90)) -> 0 | U71: =IF(ISBLANK(Stikprøve!F90)=TRUE,0,ABS(Stikprøve!F90)) -> 0 | AJ71: =IF(ISBLANK(Stikprøve!L90)=TRUE,0,ABS(Stikprøve!L90)) -> 0 | AM71: =IF(ISBLANK(Stikprøve!M90)=TRUE,0,ABS(Stikprøve!M90)) -> 0 | AP71: =IF(ISBLANK(Stikprøve!N90)=TRUE,0,ABS(Stikprøve!N90)) -> 0
A72: Nej | C72: 637 | D72: - | E72: 655 | F72: 72 | G72: 36 | H72: 2 | I72: 5 | J72: 36 | K72: 6 | L72: 7 | O72: =IF(ISBLANK(Stikprøve!D91)=TRUE,0,ABS(Stikprøve!D91)) -> 0 | R72: =IF(ISBLANK(Stikprøve!E91)=TRUE,0,ABS(Stikprøve!E91)) -> 0 | U72: =IF(ISBLANK(Stikprøve!F91)=TRUE,0,ABS(Stikprøve!F91)) -> 0 | AJ72: =IF(ISBLANK(Stikprøve!L91)=TRUE,0,ABS(Stikprøve!L91)) -> 0 | AM72: =IF(ISBLANK(Stikprøve!M91)=TRUE,0,ABS(Stikprøve!M91)) -> 0 | AP72: =IF(ISBLANK(Stikprøve!N91)=TRUE,0,ABS(Stikprøve!N91)) -> 0
A73: Nej | C73: 656 | D73: - | E73: 675 | F73: 73 | G73: 37 | H73: 2 | I73: 5 | J73: 36 | K73: 6 | L73: 7 | O73: =IF(ISBLANK(Stikprøve!D92)=TRUE,0,ABS(Stikprøve!D92)) -> 0 | R73: =IF(ISBLANK(Stikprøve!E92)=TRUE,0,ABS(Stikprøve!E92)) -> 0 | U73: =IF(ISBLANK(Stikprøve!F92)=TRUE,0,ABS(Stikprøve!F92)) -> 0 | AJ73: =IF(ISBLANK(Stikprøve!L92)=TRUE,0,ABS(Stikprøve!L92)) -> 0 | AM73: =IF(ISBLANK(Stikprøve!M92)=TRUE,0,ABS(Stikprøve!M92)) -> 0 | AP73: =IF(ISBLANK(Stikprøve!N92)=TRUE,0,ABS(Stikprøve!N92)) -> 0
A74: Nej | C74: 676 | D74: - | E74: 694 | F74: 74 | G74: 37 | H74: 2 | I74: 5 | J74: 37 | K74: 6 | L74: 7 | O74: =IF(ISBLANK(Stikprøve!D93)=TRUE,0,ABS(Stikprøve!D93)) -> 0 | R74: =IF(ISBLANK(Stikprøve!E93)=TRUE,0,ABS(Stikprøve!E93)) -> 0 | U74: =IF(ISBLANK(Stikprøve!F93)=TRUE,0,ABS(Stikprøve!F93)) -> 0 | AJ74: =IF(ISBLANK(Stikprøve!L93)=TRUE,0,ABS(Stikprøve!L93)) -> 0 | AM74: =IF(ISBLANK(Stikprøve!M93)=TRUE,0,ABS(Stikprøve!M93)) -> 0 | AP74: =IF(ISBLANK(Stikprøve!N93)=TRUE,0,ABS(Stikprøve!N93)) -> 0
A75: Nej | C75: 695 | D75: - | E75: =C76-1 -> 713 | F75: 75 | G75: 38 | H75: 2 | I75: 5 | J75: =F75-G75 -> 37 | K75: 6 | L75: 7 | O75: =IF(ISBLANK(Stikprøve!D94)=TRUE,0,ABS(Stikprøve!D94)) -> 0 | R75: =IF(ISBLANK(Stikprøve!E94)=TRUE,0,ABS(Stikprøve!E94)) -> 0 | U75: =IF(ISBLANK(Stikprøve!F94)=TRUE,0,ABS(Stikprøve!F94)) -> 0 | AJ75: =IF(ISBLANK(Stikprøve!L94)=TRUE,0,ABS(Stikprøve!L94)) -> 0 | AM75: =IF(ISBLANK(Stikprøve!M94)=TRUE,0,ABS(Stikprøve!M94)) -> 0 | AP75: =IF(ISBLANK(Stikprøve!N94)=TRUE,0,ABS(Stikprøve!N94)) -> 0
A76: =IF(AND($G$2>(C76-1),$G$2<(E76+1)),"Ja","Nej") -> Nej | C76: 714 | D76: - | E76: 733 | F76: 76 | G76: 38 | H76: 2 | I76: 5 | J76: 38 | K76: 6 | L76: 7 | O76: =IF(ISBLANK(Stikprøve!D95)=TRUE,0,ABS(Stikprøve!D95)) -> 0 | R76: =IF(ISBLANK(Stikprøve!E95)=TRUE,0,ABS(Stikprøve!E95)) -> 0 | U76: =IF(ISBLANK(Stikprøve!F95)=TRUE,0,ABS(Stikprøve!F95)) -> 0 | AJ76: =IF(ISBLANK(Stikprøve!L95)=TRUE,0,ABS(Stikprøve!L95)) -> 0 | AM76: =IF(ISBLANK(Stikprøve!M95)=TRUE,0,ABS(Stikprøve!M95)) -> 0 | AP76: =IF(ISBLANK(Stikprøve!N95)=TRUE,0,ABS(Stikprøve!N95)) -> 0
A77: Nej | C77: 734 | D77: - | E77: 752 | F77: 77 | G77: 39 | H77: 2 | I77: 5 | J77: 38 | K77: 7 | L77: 8 | O77: =IF(ISBLANK(Stikprøve!D96)=TRUE,0,ABS(Stikprøve!D96)) -> 0 | R77: =IF(ISBLANK(Stikprøve!E96)=TRUE,0,ABS(Stikprøve!E96)) -> 0 | U77: =IF(ISBLANK(Stikprøve!F96)=TRUE,0,ABS(Stikprøve!F96)) -> 0 | AJ77: =IF(ISBLANK(Stikprøve!L96)=TRUE,0,ABS(Stikprøve!L96)) -> 0 | AM77: =IF(ISBLANK(Stikprøve!M96)=TRUE,0,ABS(Stikprøve!M96)) -> 0 | AP77: =IF(ISBLANK(Stikprøve!N96)=TRUE,0,ABS(Stikprøve!N96)) -> 0
A78: Nej | C78: 753 | D78: - | E78: 772 | F78: 78 | G78: 39 | H78: 2 | I78: 5 | J78: 39 | K78: 7 | L78: 8 | O78: =IF(ISBLANK(Stikprøve!D97)=TRUE,0,ABS(Stikprøve!D97)) -> 0 | R78: =IF(ISBLANK(Stikprøve!E97)=TRUE,0,ABS(Stikprøve!E97)) -> 0 | U78: =IF(ISBLANK(Stikprøve!F97)=TRUE,0,ABS(Stikprøve!F97)) -> 0 | AJ78: =IF(ISBLANK(Stikprøve!L97)=TRUE,0,ABS(Stikprøve!L97)) -> 0 | AM78: =IF(ISBLANK(Stikprøve!M97)=TRUE,0,ABS(Stikprøve!M97)) -> 0 | AP78: =IF(ISBLANK(Stikprøve!N97)=TRUE,0,ABS(Stikprøve!N97)) -> 0
A79: Nej | C79: 773 | D79: - | E79: 791 | F79: 79 | G79: 40 | H79: 2 | I79: 5 | J79: 39 | K79: 7 | L79: 8 | O79: =IF(ISBLANK(Stikprøve!D98)=TRUE,0,ABS(Stikprøve!D98)) -> 0 | R79: =IF(ISBLANK(Stikprøve!E98)=TRUE,0,ABS(Stikprøve!E98)) -> 0 | U79: =IF(ISBLANK(Stikprøve!F98)=TRUE,0,ABS(Stikprøve!F98)) -> 0 | AJ79: =IF(ISBLANK(Stikprøve!L98)=TRUE,0,ABS(Stikprøve!L98)) -> 0 | AM79: =IF(ISBLANK(Stikprøve!M98)=TRUE,0,ABS(Stikprøve!M98)) -> 0 | AP79: =IF(ISBLANK(Stikprøve!N98)=TRUE,0,ABS(Stikprøve!N98)) -> 0
A80: Nej | C80: 792 | D80: - | E80: 811 | F80: 80 | G80: 40 | H80: 2 | I80: 5 | J80: 40 | K80: 7 | L80: 8 | O80: =IF(ISBLANK(Stikprøve!D99)=TRUE,0,ABS(Stikprøve!D99)) -> 0 | R80: =IF(ISBLANK(Stikprøve!E99)=TRUE,0,ABS(Stikprøve!E99)) -> 0 | U80: =IF(ISBLANK(Stikprøve!F99)=TRUE,0,ABS(Stikprøve!F99)) -> 0 | AJ80: =IF(ISBLANK(Stikprøve!L99)=TRUE,0,ABS(Stikprøve!L99)) -> 0 | AM80: =IF(ISBLANK(Stikprøve!M99)=TRUE,0,ABS(Stikprøve!M99)) -> 0 | AP80: =IF(ISBLANK(Stikprøve!N99)=TRUE,0,ABS(Stikprøve!N99)) -> 0
A81: Nej | C81: 812 | D81: - | E81: 830 | F81: 81 | G81: 41 | H81: 2 | I81: 5 | J81: 40 | K81: 7 | L81: 8 | O81: =IF(ISBLANK(Stikprøve!D100)=TRUE,0,ABS(Stikprøve!D100)) -> 0 | R81: =IF(ISBLANK(Stikprøve!E100)=TRUE,0,ABS(Stikprøve!E100)) -> 0 | U81: =IF(ISBLANK(Stikprøve!F100)=TRUE,0,ABS(Stikprøve!F100)) -> 0 | AJ81: =IF(ISBLANK(Stikprøve!L100)=TRUE,0,ABS(Stikprøve!L100)) -> 0 | AM81: =IF(ISBLANK(Stikprøve!M100)=TRUE,0,ABS(Stikprøve!M100)) -> 0 | AP81: =IF(ISBLANK(Stikprøve!N100)=TRUE,0,ABS(Stikprøve!N100)) -> 0
A82: Nej | C82: 831 | D82: - | E82: 850 | F82: 82 | G82: 41 | H82: 2 | I82: 5 | J82: 41 | K82: 7 | L82: 8 | O82: =IF(ISBLANK(Stikprøve!D101)=TRUE,0,ABS(Stikprøve!D101)) -> 0 | R82: =IF(ISBLANK(Stikprøve!E101)=TRUE,0,ABS(Stikprøve!E101)) -> 0 | U82: =IF(ISBLANK(Stikprøve!F101)=TRUE,0,ABS(Stikprøve!F101)) -> 0 | AJ82: =IF(ISBLANK(Stikprøve!L101)=TRUE,0,ABS(Stikprøve!L101)) -> 0 | AM82: =IF(ISBLANK(Stikprøve!M101)=TRUE,0,ABS(Stikprøve!M101)) -> 0 | AP82: =IF(ISBLANK(Stikprøve!N101)=TRUE,0,ABS(Stikprøve!N101)) -> 0
A83: Nej | C83: 851 | D83: - | E83: 869 | F83: 83 | G83: 42 | H83: 2 | I83: 5 | J83: 41 | K83: 7 | L83: 8 | O83: =IF(ISBLANK(Stikprøve!D102)=TRUE,0,ABS(Stikprøve!D102)) -> 0 | R83: =IF(ISBLANK(Stikprøve!E102)=TRUE,0,ABS(Stikprøve!E102)) -> 0 | U83: =IF(ISBLANK(Stikprøve!F102)=TRUE,0,ABS(Stikprøve!F102)) -> 0 | AJ83: =IF(ISBLANK(Stikprøve!L102)=TRUE,0,ABS(Stikprøve!L102)) -> 0 | AM83: =IF(ISBLANK(Stikprøve!M102)=TRUE,0,ABS(Stikprøve!M102)) -> 0 | AP83: =IF(ISBLANK(Stikprøve!N102)=TRUE,0,ABS(Stikprøve!N102)) -> 0
A84: Nej | C84: 870 | D84: - | E84: 888 | F84: 84 | G84: 42 | H84: 2 | I84: 5 | J84: 42 | K84: 7 | L84: 8 | O84: =IF(ISBLANK(Stikprøve!D103)=TRUE,0,ABS(Stikprøve!D103)) -> 0 | R84: =IF(ISBLANK(Stikprøve!E103)=TRUE,0,ABS(Stikprøve!E103)) -> 0 | U84: =IF(ISBLANK(Stikprøve!F103)=TRUE,0,ABS(Stikprøve!F103)) -> 0 | AJ84: =IF(ISBLANK(Stikprøve!L103)=TRUE,0,ABS(Stikprøve!L103)) -> 0 | AM84: =IF(ISBLANK(Stikprøve!M103)=TRUE,0,ABS(Stikprøve!M103)) -> 0 | AP84: =IF(ISBLANK(Stikprøve!N103)=TRUE,0,ABS(Stikprøve!N103)) -> 0
A85: Nej | C85: 889 | D85: - | E85: 908 | F85: 85 | G85: 43 | H85: 2 | I85: 5 | J85: 42 | K85: 7 | L85: 8 | O85: =IF(ISBLANK(Stikprøve!D104)=TRUE,0,ABS(Stikprøve!D104)) -> 0 | R85: =IF(ISBLANK(Stikprøve!E104)=TRUE,0,ABS(Stikprøve!E104)) -> 0 | U85: =IF(ISBLANK(Stikprøve!F104)=TRUE,0,ABS(Stikprøve!F104)) -> 0 | AJ85: =IF(ISBLANK(Stikprøve!L104)=TRUE,0,ABS(Stikprøve!L104)) -> 0 | AM85: =IF(ISBLANK(Stikprøve!M104)=TRUE,0,ABS(Stikprøve!M104)) -> 0 | AP85: =IF(ISBLANK(Stikprøve!N104)=TRUE,0,ABS(Stikprøve!N104)) -> 0
A86: Nej | C86: 909 | D86: - | E86: 927 | F86: 86 | G86: 43 | H86: 2 | I86: 5 | J86: 43 | K86: 7 | L86: 8 | O86: =IF(ISBLANK(Stikprøve!D105)=TRUE,0,ABS(Stikprøve!D105)) -> 0 | R86: =IF(ISBLANK(Stikprøve!E105)=TRUE,0,ABS(Stikprøve!E105)) -> 0 | U86: =IF(ISBLANK(Stikprøve!F105)=TRUE,0,ABS(Stikprøve!F105)) -> 0 | AJ86: =IF(ISBLANK(Stikprøve!L105)=TRUE,0,ABS(Stikprøve!L105)) -> 0 | AM86: =IF(ISBLANK(Stikprøve!M105)=TRUE,0,ABS(Stikprøve!M105)) -> 0 | AP86: =IF(ISBLANK(Stikprøve!N105)=TRUE,0,ABS(Stikprøve!N105)) -> 0
A87: Nej | C87: 928 | D87: - | E87: 947 | F87: 87 | G87: 44 | H87: 2 | I87: 5 | J87: 43 | K87: 7 | L87: 8 | O87: =IF(ISBLANK(Stikprøve!D106)=TRUE,0,ABS(Stikprøve!D106)) -> 0 | R87: =IF(ISBLANK(Stikprøve!E106)=TRUE,0,ABS(Stikprøve!E106)) -> 0 | U87: =IF(ISBLANK(Stikprøve!F106)=TRUE,0,ABS(Stikprøve!F106)) -> 0 | AJ87: =IF(ISBLANK(Stikprøve!L106)=TRUE,0,ABS(Stikprøve!L106)) -> 0 | AM87: =IF(ISBLANK(Stikprøve!M106)=TRUE,0,ABS(Stikprøve!M106)) -> 0 | AP87: =IF(ISBLANK(Stikprøve!N106)=TRUE,0,ABS(Stikprøve!N106)) -> 0
A88: Nej | C88: 948 | D88: - | E88: 966 | F88: 88 | G88: 44 | H88: 2 | I88: 5 | J88: 44 | K88: 7 | L88: 8 | O88: =IF(ISBLANK(Stikprøve!D107)=TRUE,0,ABS(Stikprøve!D107)) -> 0 | R88: =IF(ISBLANK(Stikprøve!E107)=TRUE,0,ABS(Stikprøve!E107)) -> 0 | U88: =IF(ISBLANK(Stikprøve!F107)=TRUE,0,ABS(Stikprøve!F107)) -> 0 | AJ88: =IF(ISBLANK(Stikprøve!L107)=TRUE,0,ABS(Stikprøve!L107)) -> 0 | AM88: =IF(ISBLANK(Stikprøve!M107)=TRUE,0,ABS(Stikprøve!M107)) -> 0 | AP88: =IF(ISBLANK(Stikprøve!N107)=TRUE,0,ABS(Stikprøve!N107)) -> 0
A89: Nej | C89: 967 | D89: - | E89: =C90-1 -> 986 | F89: 89 | G89: 45 | H89: 2 | I89: 5 | J89: 44 | K89: 8 | L89: 9 | O89: =IF(ISBLANK(Stikprøve!D108)=TRUE,0,ABS(Stikprøve!D108)) -> 0 | R89: =IF(ISBLANK(Stikprøve!E108)=TRUE,0,ABS(Stikprøve!E108)) -> 0 | U89: =IF(ISBLANK(Stikprøve!F108)=TRUE,0,ABS(Stikprøve!F108)) -> 0 | AJ89: =IF(ISBLANK(Stikprøve!L108)=TRUE,0,ABS(Stikprøve!L108)) -> 0 | AM89: =IF(ISBLANK(Stikprøve!M108)=TRUE,0,ABS(Stikprøve!M108)) -> 0 | AP89: =IF(ISBLANK(Stikprøve!N108)=TRUE,0,ABS(Stikprøve!N108)) -> 0
A90: Nej | C90: 987 | D90: - | E90: 1005 | F90: 90 | G90: 45 | H90: 2 | I90: 5 | J90: 45 | K90: 8 | L90: 9 | O90: =IF(ISBLANK(Stikprøve!D109)=TRUE,0,ABS(Stikprøve!D109)) -> 0 | R90: =IF(ISBLANK(Stikprøve!E109)=TRUE,0,ABS(Stikprøve!E109)) -> 0 | U90: =IF(ISBLANK(Stikprøve!F109)=TRUE,0,ABS(Stikprøve!F109)) -> 0 | AD90: =IF($O90>U$19,1,IF($R90>U$20,1,IF($U90>U$21,1,""))) ->  | AJ90: =IF(ISBLANK(Stikprøve!L109)=TRUE,0,ABS(Stikprøve!L109)) -> 0 | AM90: =IF(ISBLANK(Stikprøve!M109)=TRUE,0,ABS(Stikprøve!M109)) -> 0 | AP90: =IF(ISBLANK(Stikprøve!N109)=TRUE,0,ABS(Stikprøve!N109)) -> 0 | AZ90: =IF($AJ90>V$19,1,IF($AM90>V$20,1,IF($AP90>V$21,1,""))) -> 
A91: Nej | C91: 1006 | D91: - | E91: 1025 | F91: 91 | G91: 46 | H91: 2 | I91: 5 | J91: 45 | K91: 8 | L91: 9 | O91: =IF(ISBLANK(Stikprøve!D110)=TRUE,0,ABS(Stikprøve!D110)) -> 0 | R91: =IF(ISBLANK(Stikprøve!E110)=TRUE,0,ABS(Stikprøve!E110)) -> 0 | U91: =IF(ISBLANK(Stikprøve!F110)=TRUE,0,ABS(Stikprøve!F110)) -> 0 | AJ91: =IF(ISBLANK(Stikprøve!L110)=TRUE,0,ABS(Stikprøve!L110)) -> 0 | AM91: =IF(ISBLANK(Stikprøve!M110)=TRUE,0,ABS(Stikprøve!M110)) -> 0 | AP91: =IF(ISBLANK(Stikprøve!N110)=TRUE,0,ABS(Stikprøve!N110)) -> 0
A92: Nej | C92: 1026 | D92: - | E92: 1044 | F92: 92 | G92: 46 | H92: 2 | I92: 5 | J92: 46 | K92: 8 | L92: 9 | O92: =IF(ISBLANK(Stikprøve!D111)=TRUE,0,ABS(Stikprøve!D111)) -> 0 | R92: =IF(ISBLANK(Stikprøve!E111)=TRUE,0,ABS(Stikprøve!E111)) -> 0 | U92: =IF(ISBLANK(Stikprøve!F111)=TRUE,0,ABS(Stikprøve!F111)) -> 0 | AJ92: =IF(ISBLANK(Stikprøve!L111)=TRUE,0,ABS(Stikprøve!L111)) -> 0 | AM92: =IF(ISBLANK(Stikprøve!M111)=TRUE,0,ABS(Stikprøve!M111)) -> 0 | AP92: =IF(ISBLANK(Stikprøve!N111)=TRUE,0,ABS(Stikprøve!N111)) -> 0
A93: Nej | C93: 1045 | D93: - | E93: 1063 | F93: 93 | G93: 47 | H93: 2 | I93: 5 | J93: 46 | K93: 8 | L93: 9 | O93: =IF(ISBLANK(Stikprøve!D112)=TRUE,0,ABS(Stikprøve!D112)) -> 0 | R93: =IF(ISBLANK(Stikprøve!E112)=TRUE,0,ABS(Stikprøve!E112)) -> 0 | U93: =IF(ISBLANK(Stikprøve!F112)=TRUE,0,ABS(Stikprøve!F112)) -> 0 | AJ93: =IF(ISBLANK(Stikprøve!L112)=TRUE,0,ABS(Stikprøve!L112)) -> 0 | AM93: =IF(ISBLANK(Stikprøve!M112)=TRUE,0,ABS(Stikprøve!M112)) -> 0 | AP93: =IF(ISBLANK(Stikprøve!N112)=TRUE,0,ABS(Stikprøve!N112)) -> 0
A94: Nej | C94: 1064 | D94: - | E94: 1083 | F94: 94 | G94: 47 | H94: 2 | I94: 5 | J94: 47 | K94: 8 | L94: 9 | O94: =IF(ISBLANK(Stikprøve!D113)=TRUE,0,ABS(Stikprøve!D113)) -> 0 | R94: =IF(ISBLANK(Stikprøve!E113)=TRUE,0,ABS(Stikprøve!E113)) -> 0 | U94: =IF(ISBLANK(Stikprøve!F113)=TRUE,0,ABS(Stikprøve!F113)) -> 0 | AJ94: =IF(ISBLANK(Stikprøve!L113)=TRUE,0,ABS(Stikprøve!L113)) -> 0 | AM94: =IF(ISBLANK(Stikprøve!M113)=TRUE,0,ABS(Stikprøve!M113)) -> 0 | AP94: =IF(ISBLANK(Stikprøve!N113)=TRUE,0,ABS(Stikprøve!N113)) -> 0
A95: Nej | C95: 1084 | D95: - | E95: 1102 | F95: 95 | G95: 48 | H95: 2 | I95: 5 | J95: 47 | K95: 8 | L95: 9 | O95: =IF(ISBLANK(Stikprøve!D114)=TRUE,0,ABS(Stikprøve!D114)) -> 0 | R95: =IF(ISBLANK(Stikprøve!E114)=TRUE,0,ABS(Stikprøve!E114)) -> 0 | U95: =IF(ISBLANK(Stikprøve!F114)=TRUE,0,ABS(Stikprøve!F114)) -> 0 | Z95: =IF($O95>Q$19,1,IF($R95>Q$20,1,IF($U95>Q$21,1,""))) ->  | AH95: =IF($O95>Y$19,1,IF($R95>Y$20,1,IF($U95>Y$21,1,""))) ->  | AJ95: =IF(ISBLANK(Stikprøve!L114)=TRUE,0,ABS(Stikprøve!L114)) -> 0 | AM95: =IF(ISBLANK(Stikprøve!M114)=TRUE,0,ABS(Stikprøve!M114)) -> 0 | AP95: =IF(ISBLANK(Stikprøve!N114)=TRUE,0,ABS(Stikprøve!N114)) -> 0 | AU95: =IF($AJ95>Q$19,1,IF($AM95>Q$20,1,IF($AP95>Q$21,1,""))) ->  | AV95: =IF($AJ95>R$19,1,IF($AM95>R$20,1,IF($AP95>R$21,1,""))) ->  | BC95: =IF($AJ95>Y$19,1,IF($AM95>Y$20,1,IF($AP95>Y$21,1,""))) -> 
A96: Nej | C96: 1103 | D96: - | E96: 1122 | F96: 96 | G96: 48 | H96: 2 | I96: 5 | J96: 48 | K96: 8 | L96: 9 | O96: =IF(ISBLANK(Stikprøve!D115)=TRUE,0,ABS(Stikprøve!D115)) -> 0 | R96: =IF(ISBLANK(Stikprøve!E115)=TRUE,0,ABS(Stikprøve!E115)) -> 0 | U96: =IF(ISBLANK(Stikprøve!F115)=TRUE,0,ABS(Stikprøve!F115)) -> 0 | AJ96: =IF(ISBLANK(Stikprøve!L115)=TRUE,0,ABS(Stikprøve!L115)) -> 0 | AM96: =IF(ISBLANK(Stikprøve!M115)=TRUE,0,ABS(Stikprøve!M115)) -> 0 | AP96: =IF(ISBLANK(Stikprøve!N115)=TRUE,0,ABS(Stikprøve!N115)) -> 0
A97: Nej | C97: 1123 | D97: - | E97: 1141 | F97: 97 | G97: 49 | H97: 2 | I97: 5 | J97: 48 | K97: 8 | L97: 9 | O97: =IF(ISBLANK(Stikprøve!D116)=TRUE,0,ABS(Stikprøve!D116)) -> 0 | R97: =IF(ISBLANK(Stikprøve!E116)=TRUE,0,ABS(Stikprøve!E116)) -> 0 | U97: =IF(ISBLANK(Stikprøve!F116)=TRUE,0,ABS(Stikprøve!F116)) -> 0 | AJ97: =IF(ISBLANK(Stikprøve!L116)=TRUE,0,ABS(Stikprøve!L116)) -> 0 | AM97: =IF(ISBLANK(Stikprøve!M116)=TRUE,0,ABS(Stikprøve!M116)) -> 0 | AP97: =IF(ISBLANK(Stikprøve!N116)=TRUE,0,ABS(Stikprøve!N116)) -> 0
A98: Nej | C98: 1142 | D98: - | E98: 1161 | F98: 98 | G98: 49 | H98: 2 | I98: 5 | J98: 49 | K98: 8 | L98: 9 | O98: =IF(ISBLANK(Stikprøve!D117)=TRUE,0,ABS(Stikprøve!D117)) -> 0 | R98: =IF(ISBLANK(Stikprøve!E117)=TRUE,0,ABS(Stikprøve!E117)) -> 0 | U98: =IF(ISBLANK(Stikprøve!F117)=TRUE,0,ABS(Stikprøve!F117)) -> 0 | AJ98: =IF(ISBLANK(Stikprøve!L117)=TRUE,0,ABS(Stikprøve!L117)) -> 0 | AM98: =IF(ISBLANK(Stikprøve!M117)=TRUE,0,ABS(Stikprøve!M117)) -> 0 | AP98: =IF(ISBLANK(Stikprøve!N117)=TRUE,0,ABS(Stikprøve!N117)) -> 0
A99: Nej | C99: 1162 | D99: - | E99: 1180 | F99: 99 | G99: 50 | H99: 2 | I99: 5 | J99: 49 | K99: 8 | L99: 9 | O99: =IF(ISBLANK(Stikprøve!D118)=TRUE,0,ABS(Stikprøve!D118)) -> 0 | R99: =IF(ISBLANK(Stikprøve!E118)=TRUE,0,ABS(Stikprøve!E118)) -> 0 | U99: =IF(ISBLANK(Stikprøve!F118)=TRUE,0,ABS(Stikprøve!F118)) -> 0 | AJ99: =IF(ISBLANK(Stikprøve!L118)=TRUE,0,ABS(Stikprøve!L118)) -> 0 | AM99: =IF(ISBLANK(Stikprøve!M118)=TRUE,0,ABS(Stikprøve!M118)) -> 0 | AP99: =IF(ISBLANK(Stikprøve!N118)=TRUE,0,ABS(Stikprøve!N118)) -> 0
A100: Nej | C100: 1181 | D100: - | E100: 1199 | F100: 100 | G100: 50 | H100: 2 | I100: 5 | J100: 50 | K100: 8 | L100: 9 | O100: =IF(ISBLANK(Stikprøve!D119)=TRUE,0,ABS(Stikprøve!D119)) -> 0 | R100: =IF(ISBLANK(Stikprøve!E119)=TRUE,0,ABS(Stikprøve!E119)) -> 0 | U100: =IF(ISBLANK(Stikprøve!F119)=TRUE,0,ABS(Stikprøve!F119)) -> 0 | AJ100: =IF(ISBLANK(Stikprøve!L119)=TRUE,0,ABS(Stikprøve!L119)) -> 0 | AM100: =IF(ISBLANK(Stikprøve!M119)=TRUE,0,ABS(Stikprøve!M119)) -> 0 | AP100: =IF(ISBLANK(Stikprøve!N119)=TRUE,0,ABS(Stikprøve!N119)) -> 0
A101: Nej | C101: 1200 | D101: - | E101: 1200 | F101: 100 | G101: 50 | H101: 3 | I101: 6 | J101: 50 | K101: 9 | L101: 10 | O101: =IF(ISBLANK(Stikprøve!D120)=TRUE,0,ABS(Stikprøve!D120)) -> 0 | R101: =IF(ISBLANK(Stikprøve!E120)=TRUE,0,ABS(Stikprøve!E120)) -> 0 | U101: =IF(ISBLANK(Stikprøve!F120)=TRUE,0,ABS(Stikprøve!F120)) -> 0 | AJ101: =IF(ISBLANK(Stikprøve!L120)=TRUE,0,ABS(Stikprøve!L120)) -> 0 | AM101: =IF(ISBLANK(Stikprøve!M120)=TRUE,0,ABS(Stikprøve!M120)) -> 0 | AP101: =IF(ISBLANK(Stikprøve!N120)=TRUE,0,ABS(Stikprøve!N120)) -> 0
A102: Nej | C102: 1201 | D102: - | E102: 1233 | F102: 101 | G102: 51 | H102: 3 | I102: 6 | J102: 50 | K102: 9 | L102: 10 | O102: =IF(ISBLANK(Stikprøve!D121)=TRUE,0,ABS(Stikprøve!D121)) -> 0 | R102: =IF(ISBLANK(Stikprøve!E121)=TRUE,0,ABS(Stikprøve!E121)) -> 0 | U102: =IF(ISBLANK(Stikprøve!F121)=TRUE,0,ABS(Stikprøve!F121)) -> 0 | AJ102: =IF(ISBLANK(Stikprøve!L121)=TRUE,0,ABS(Stikprøve!L121)) -> 0 | AM102: =IF(ISBLANK(Stikprøve!M121)=TRUE,0,ABS(Stikprøve!M121)) -> 0 | AP102: =IF(ISBLANK(Stikprøve!N121)=TRUE,0,ABS(Stikprøve!N121)) -> 0
A103: Nej | C103: 1234 | D103: - | E103: 1266 | F103: 102 | G103: 51 | H103: 3 | I103: 6 | J103: 51 | K103: 9 | L103: 10 | O103: =IF(ISBLANK(Stikprøve!D122)=TRUE,0,ABS(Stikprøve!D122)) -> 0 | R103: =IF(ISBLANK(Stikprøve!E122)=TRUE,0,ABS(Stikprøve!E122)) -> 0 | U103: =IF(ISBLANK(Stikprøve!F122)=TRUE,0,ABS(Stikprøve!F122)) -> 0 | AJ103: =IF(ISBLANK(Stikprøve!L122)=TRUE,0,ABS(Stikprøve!L122)) -> 0 | AM103: =IF(ISBLANK(Stikprøve!M122)=TRUE,0,ABS(Stikprøve!M122)) -> 0 | AP103: =IF(ISBLANK(Stikprøve!N122)=TRUE,0,ABS(Stikprøve!N122)) -> 0
A104: Nej | C104: 1267 | D104: - | E104: 1300 | F104: 103 | G104: 52 | H104: 3 | I104: 6 | J104: 51 | K104: 9 | L104: 10 | O104: =IF(ISBLANK(Stikprøve!D123)=TRUE,0,ABS(Stikprøve!D123)) -> 0 | R104: =IF(ISBLANK(Stikprøve!E123)=TRUE,0,ABS(Stikprøve!E123)) -> 0 | U104: =IF(ISBLANK(Stikprøve!F123)=TRUE,0,ABS(Stikprøve!F123)) -> 0 | AJ104: =IF(ISBLANK(Stikprøve!L123)=TRUE,0,ABS(Stikprøve!L123)) -> 0 | AM104: =IF(ISBLANK(Stikprøve!M123)=TRUE,0,ABS(Stikprøve!M123)) -> 0 | AP104: =IF(ISBLANK(Stikprøve!N123)=TRUE,0,ABS(Stikprøve!N123)) -> 0
A105: Nej | C105: 1301 | D105: - | E105: 1333 | F105: 104 | G105: 52 | H105: 3 | I105: 6 | J105: 52 | K105: 9 | L105: 10 | O105: =IF(ISBLANK(Stikprøve!D124)=TRUE,0,ABS(Stikprøve!D124)) -> 0 | R105: =IF(ISBLANK(Stikprøve!E124)=TRUE,0,ABS(Stikprøve!E124)) -> 0 | U105: =IF(ISBLANK(Stikprøve!F124)=TRUE,0,ABS(Stikprøve!F124)) -> 0 | AJ105: =IF(ISBLANK(Stikprøve!L124)=TRUE,0,ABS(Stikprøve!L124)) -> 0 | AM105: =IF(ISBLANK(Stikprøve!M124)=TRUE,0,ABS(Stikprøve!M124)) -> 0 | AP105: =IF(ISBLANK(Stikprøve!N124)=TRUE,0,ABS(Stikprøve!N124)) -> 0
A106: Nej | C106: 1334 | D106: - | E106: 1366 | F106: 105 | G106: 53 | H106: 3 | I106: 6 | J106: 52 | K106: 9 | L106: 10 | O106: =IF(ISBLANK(Stikprøve!D125)=TRUE,0,ABS(Stikprøve!D125)) -> 0 | R106: =IF(ISBLANK(Stikprøve!E125)=TRUE,0,ABS(Stikprøve!E125)) -> 0 | U106: =IF(ISBLANK(Stikprøve!F125)=TRUE,0,ABS(Stikprøve!F125)) -> 0 | AJ106: =IF(ISBLANK(Stikprøve!L125)=TRUE,0,ABS(Stikprøve!L125)) -> 0 | AM106: =IF(ISBLANK(Stikprøve!M125)=TRUE,0,ABS(Stikprøve!M125)) -> 0 | AP106: =IF(ISBLANK(Stikprøve!N125)=TRUE,0,ABS(Stikprøve!N125)) -> 0
A107: Nej | C107: 1367 | D107: - | E107: 1400 | F107: 106 | G107: 53 | H107: 3 | I107: 6 | J107: =F107-G107 -> 53 | K107: 9 | L107: 10 | O107: =IF(ISBLANK(Stikprøve!D126)=TRUE,0,ABS(Stikprøve!D126)) -> 0 | R107: =IF(ISBLANK(Stikprøve!E126)=TRUE,0,ABS(Stikprøve!E126)) -> 0 | U107: =IF(ISBLANK(Stikprøve!F126)=TRUE,0,ABS(Stikprøve!F126)) -> 0 | AJ107: =IF(ISBLANK(Stikprøve!L126)=TRUE,0,ABS(Stikprøve!L126)) -> 0 | AM107: =IF(ISBLANK(Stikprøve!M126)=TRUE,0,ABS(Stikprøve!M126)) -> 0 | AP107: =IF(ISBLANK(Stikprøve!N126)=TRUE,0,ABS(Stikprøve!N126)) -> 0
A108: Nej | C108: 1401 | D108: - | E108: 1433 | F108: 107 | G108: 54 | H108: 3 | I108: 6 | J108: 53 | K108: 9 | L108: 10 | O108: =IF(ISBLANK(Stikprøve!D127)=TRUE,0,ABS(Stikprøve!D127)) -> 0 | R108: =IF(ISBLANK(Stikprøve!E127)=TRUE,0,ABS(Stikprøve!E127)) -> 0 | U108: =IF(ISBLANK(Stikprøve!F127)=TRUE,0,ABS(Stikprøve!F127)) -> 0 | AJ108: =IF(ISBLANK(Stikprøve!L127)=TRUE,0,ABS(Stikprøve!L127)) -> 0 | AM108: =IF(ISBLANK(Stikprøve!M127)=TRUE,0,ABS(Stikprøve!M127)) -> 0 | AP108: =IF(ISBLANK(Stikprøve!N127)=TRUE,0,ABS(Stikprøve!N127)) -> 0
A109: Nej | C109: 1434 | D109: - | E109: 1466 | F109: 108 | G109: 54 | H109: 3 | I109: 6 | J109: 54 | K109: 9 | L109: 10 | O109: =IF(ISBLANK(Stikprøve!D128)=TRUE,0,ABS(Stikprøve!D128)) -> 0 | R109: =IF(ISBLANK(Stikprøve!E128)=TRUE,0,ABS(Stikprøve!E128)) -> 0 | U109: =IF(ISBLANK(Stikprøve!F128)=TRUE,0,ABS(Stikprøve!F128)) -> 0 | AJ109: =IF(ISBLANK(Stikprøve!L128)=TRUE,0,ABS(Stikprøve!L128)) -> 0 | AM109: =IF(ISBLANK(Stikprøve!M128)=TRUE,0,ABS(Stikprøve!M128)) -> 0 | AP109: =IF(ISBLANK(Stikprøve!N128)=TRUE,0,ABS(Stikprøve!N128)) -> 0
A110: Nej | C110: 1467 | D110: - | E110: 1500 | F110: 109 | G110: 55 | H110: 3 | I110: 6 | J110: 54 | K110: 9 | L110: 10
A111: Nej | C111: 1501 | D111: - | E111: 1533 | F111: 110 | G111: 55 | H111: 3 | I111: 6 | J111: 55 | K111: 9 | L111: 10 | O111: Intervalgrænser (afvigelser i %) for de tre målepunkter: | AJ111: Intervalgrænser (afvigelser i %) for de tre målepunkter:
A112: Nej | C112: 1534 | D112: - | E112: 1566 | F112: 111 | G112: 56 | H112: 3 | I112: 6 | J112: 55 | K112: 9 | L112: 10
A113: Nej | C113: 1567 | D113: - | E113: 1600 | F113: 112 | G113: 56 | H113: 3 | I113: 6 | J113: 56 | K113: 9 | L113: 10 | O113: Max. Antal År | P113: 9 | Q113: 8 | R113: 7 | S113: 6 | T113: 5 | U113: 4 | V113: 3 | W113: 2 | X113: 1 | Y113: 0 | AJ113: Max. Antal År | AK113: 9 | AL113: 8 | AM113: 7 | AN113: 6 | AO113: 5 | AP113: 4 | AQ113: 3 | AR113: 2 | AS113: 1 | AT113: 0
A114: Nej | C114: 1601 | D114: - | E114: 1633 | F114: 113 | G114: 57 | H114: 3 | I114: 6 | J114: 56 | K114: 9 | L114: 10 | O114: Målepunkt 1 | Q114: 6.3 | R114: =Q114+6.3/8 -> 7.0875 | S114: =R114+6.3/8 -> 7.875 | T114: =S114+6.3/8 -> 8.6625 | U114: =T114+6.3/8 -> 9.45 | V114: =U114+6.3/8 -> 10.2375 | W114: =V114+6.3/8 -> 11.025 | X114: =W114+6.3/8 -> 11.8125 | Y114: =X114+6.3/8 -> 12.6 | AJ114: Målepunkt 1 | AL114: 6.3 | AM114: =AL114+6.3/8 -> 7.0875 | AN114: =AM114+6.3/8 -> 7.875 | AO114: =AN114+6.3/8 -> 8.6625 | AP114: =AO114+6.3/8 -> 9.45 | AQ114: =AP114+6.3/8 -> 10.2375 | AR114: =AQ114+6.3/8 -> 11.025 | AS114: =AR114+6.3/8 -> 11.8125 | AT114: =AS114+6.3/8 -> 12.6
A115: Nej | C115: 1634 | D115: - | E115: 1666 | F115: 114 | G115: 57 | H115: 3 | I115: 6 | J115: 57 | K115: 9 | L115: 10 | O115: Målepunkt 2 | Q115: 5 | R115: =Q115+(5/8) -> 5.625 | S115: =R115+(5/8) -> 6.25 | T115: =S115+(5/8) -> 6.875 | U115: =T115+(5/8) -> 7.5 | V115: =U115+(5/8) -> 8.125 | W115: =V115+(5/8) -> 8.75 | X115: =W115+(5/8) -> 9.375 | Y115: =X115+(5/8) -> 10 | AJ115: Målepunkt 2 | AL115: 5 | AM115: =AL115+(5/8) -> 5.625 | AN115: =AM115+(5/8) -> 6.25 | AO115: =AN115+(5/8) -> 6.875 | AP115: =AO115+(5/8) -> 7.5 | AQ115: =AP115+(5/8) -> 8.125 | AR115: =AQ115+(5/8) -> 8.75 | AS115: =AR115+(5/8) -> 9.375 | AT115: =AS115+(5/8) -> 10
A116: Nej | C116: 1667 | D116: - | E116: 1700 | F116: 115 | G116: 58 | H116: 3 | I116: 6 | J116: 57 | K116: 9 | L116: 10 | O116: Målepunkt 3 | Q116: 5.2 | R116: =Q116+5.2/8 -> 5.85 | S116: =R116+5.2/8 -> 6.5 | T116: =S116+5.2/8 -> 7.15 | U116: =T116+5.2/8 -> 7.8 | V116: =U116+5.2/8 -> 8.45 | W116: =V116+5.2/8 -> 9.1 | X116: =W116+5.2/8 -> 9.75 | Y116: =X116+5.2/8 -> 10.4 | AJ116: Målepunkt 3 | AL116: 5.2 | AM116: =AL116+5.2/8 -> 5.85 | AN116: =AM116+5.2/8 -> 6.5 | AO116: =AN116+5.2/8 -> 7.15 | AP116: =AO116+5.2/8 -> 7.8 | AQ116: =AP116+5.2/8 -> 8.45 | AR116: =AQ116+5.2/8 -> 9.1 | AS116: =AR116+5.2/8 -> 9.75 | AT116: =AS116+5.2/8 -> 10.4
A117: Nej | C117: 1701 | D117: - | E117: 1733 | F117: 116 | G117: 58 | H117: 3 | I117: 6 | J117: 58 | K117: 9 | L117: 10
A118: Nej | C118: 1734 | D118: - | E118: 1766 | F118: 117 | G118: 59 | H118: 3 | I118: 6 | J118: 58 | K118: 9 | L118: 10 | O118: Stikprøve 1: Optælling af målere til grafer | AJ118: Stikprøve 2: Optælling af målere til grafer
A119: Nej | C119: 1767 | D119: - | E119: 1800 | F119: 118 | G119: 59 | H119: 3 | I119: 6 | J119: 59 | K119: 9 | L119: 10 | O119: Målere der overkrider de forskellige grænser | AJ119: Målere der overkrider de forskellige grænser
A120: Nej | C120: 1801 | D120: - | E120: 1833 | F120: 119 | G120: 60 | H120: 3 | I120: 6 | J120: 59 | K120: 9 | L120: 10 | O120: Målepunkt 1 | Q120: =COUNTIF($O$30:INDIRECT(ADDRESS(29+$G$3,15,1,,"Beregninger")),">"&Q114) -> 0 | R120: =COUNTIF($O$30:INDIRECT(ADDRESS(29+$G$3,15,1,,"Beregninger")),">"&R114) -> 0 | S120: =COUNTIF($O$30:INDIRECT(ADDRESS(29+$G$3,15,1,,"Beregninger")),">"&S114) -> 0 | T120: =COUNTIF($O$30:INDIRECT(ADDRESS(29+$G$3,15,1,,"Beregninger")),">"&T114) -> 0 | U120: =COUNTIF($O$30:INDIRECT(ADDRESS(29+$G$3,15,1,,"Beregninger")),">"&U114) -> 0 | V120: =COUNTIF($O$30:INDIRECT(ADDRESS(29+$G$3,15,1,,"Beregninger")),">"&V114) -> 0 | W120: =COUNTIF($O$30:INDIRECT(ADDRESS(29+$G$3,15,1,,"Beregninger")),">"&W114) -> 0 | X120: =COUNTIF($O$30:INDIRECT(ADDRESS(29+$G$3,15,1,,"Beregninger")),">"&X114) -> 0 | Y120: =COUNTIF($O$30:INDIRECT(ADDRESS(29+$G$3,15,1,,"Beregninger")),">"&Y114) -> 0 | AJ120: Målepunkt 1 | AL120: =COUNTIF($AJ$30:INDIRECT(ADDRESS(29+$G$3,36,1,,"Beregninger")),">"&AL114) -> 0 | AM120: =COUNTIF($AJ$30:INDIRECT(ADDRESS(29+$G$3,36,1,,"Beregninger")),">"&AM114) -> 0 | AN120: =COUNTIF($AJ$30:INDIRECT(ADDRESS(29+$G$3,36,1,,"Beregninger")),">"&AN114) -> 0 | AO120: =COUNTIF($AJ$30:INDIRECT(ADDRESS(29+$G$3,36,1,,"Beregninger")),">"&AO114) -> 0 | AP120: =COUNTIF($AJ$30:INDIRECT(ADDRESS(29+$G$3,36,1,,"Beregninger")),">"&AP114) -> 0 | AQ120: =COUNTIF($AJ$30:INDIRECT(ADDRESS(29+$G$3,36,1,,"Beregninger")),">"&AQ114) -> 0 | AR120: =COUNTIF($AJ$30:INDIRECT(ADDRESS(29+$G$3,36,1,,"Beregninger")),">"&AR114) -> 0 | AS120: =COUNTIF($AJ$30:INDIRECT(ADDRESS(29+$G$3,36,1,,"Beregninger")),">"&AS114) -> 0 | AT120: =COUNTIF($AJ$30:INDIRECT(ADDRESS(29+$G$3,36,1,,"Beregninger")),">"&AT114) -> 0
A121: Nej | C121: 1834 | D121: - | E121: 1866 | F121: 120 | G121: 60 | H121: 3 | I121: 6 | J121: 60 | K121: 9 | L121: 10 | O121: Målepunkt 2 | Q121: =COUNTIF($R$30:INDIRECT(ADDRESS(29+$G$3,18,1,,"Beregninger")),">"&Q115) -> 0 | R121: =COUNTIF($R$30:INDIRECT(ADDRESS(29+$G$3,18,1,,"Beregninger")),">"&R115) -> 0 | S121: =COUNTIF($R$30:INDIRECT(ADDRESS(29+$G$3,18,1,,"Beregninger")),">"&S115) -> 0 | T121: =COUNTIF($R$30:INDIRECT(ADDRESS(29+$G$3,18,1,,"Beregninger")),">"&T115) -> 0 | U121: =COUNTIF($R$30:INDIRECT(ADDRESS(29+$G$3,18,1,,"Beregninger")),">"&U115) -> 0 | V121: =COUNTIF($R$30:INDIRECT(ADDRESS(29+$G$3,18,1,,"Beregninger")),">"&V115) -> 0 | W121: =COUNTIF($R$30:INDIRECT(ADDRESS(29+$G$3,18,1,,"Beregninger")),">"&W115) -> 0 | X121: =COUNTIF($R$30:INDIRECT(ADDRESS(29+$G$3,18,1,,"Beregninger")),">"&X115) -> 0 | Y121: =COUNTIF($R$30:INDIRECT(ADDRESS(29+$G$3,18,1,,"Beregninger")),">"&Y115) -> 0 | AJ121: Målepunkt 2 | AL121: =COUNTIF($AM$30:INDIRECT(ADDRESS(29+$G$3,39,1,,"Beregninger")),">"&AL115) -> 0 | AM121: =COUNTIF($AM$30:INDIRECT(ADDRESS(29+$G$3,39,1,,"Beregninger")),">"&AM115) -> 0 | AN121: =COUNTIF($AM$30:INDIRECT(ADDRESS(29+$G$3,39,1,,"Beregninger")),">"&AN115) -> 0 | AO121: =COUNTIF($AM$30:INDIRECT(ADDRESS(29+$G$3,39,1,,"Beregninger")),">"&AO115) -> 0 | AP121: =COUNTIF($AM$30:INDIRECT(ADDRESS(29+$G$3,39,1,,"Beregninger")),">"&AP115) -> 0 | AQ121: =COUNTIF($AM$30:INDIRECT(ADDRESS(29+$G$3,39,1,,"Beregninger")),">"&AQ115) -> 0 | AR121: =COUNTIF($AM$30:INDIRECT(ADDRESS(29+$G$3,39,1,,"Beregninger")),">"&AR115) -> 0 | AS121: =COUNTIF($AM$30:INDIRECT(ADDRESS(29+$G$3,39,1,,"Beregninger")),">"&AS115) -> 0 | AT121: =COUNTIF($AM$30:INDIRECT(ADDRESS(29+$G$3,39,1,,"Beregninger")),">"&AT115) -> 0
A122: Nej | C122: 1867 | D122: - | E122: 1900 | F122: 121 | G122: 61 | H122: 3 | I122: 7 | J122: 60 | K122: 10 | L122: 11 | O122: Målepunkt 3 | Q122: =COUNTIF($U$30:INDIRECT(ADDRESS(29+$G$3,21,1,,"Beregninger")),">"&Q116) -> 0 | R122: =COUNTIF($U$30:INDIRECT(ADDRESS(29+$G$3,21,1,,"Beregninger")),">"&R116) -> 0 | S122: =COUNTIF($U$30:INDIRECT(ADDRESS(29+$G$3,21,1,,"Beregninger")),">"&S116) -> 0 | T122: =COUNTIF($U$30:INDIRECT(ADDRESS(29+$G$3,21,1,,"Beregninger")),">"&T116) -> 0 | U122: =COUNTIF($U$30:INDIRECT(ADDRESS(29+$G$3,21,1,,"Beregninger")),">"&U116) -> 0 | V122: =COUNTIF($U$30:INDIRECT(ADDRESS(29+$G$3,21,1,,"Beregninger")),">"&V116) -> 0 | W122: =COUNTIF($U$30:INDIRECT(ADDRESS(29+$G$3,21,1,,"Beregninger")),">"&W116) -> 0 | X122: =COUNTIF($U$30:INDIRECT(ADDRESS(29+$G$3,21,1,,"Beregninger")),">"&X116) -> 0 | Y122: =COUNTIF($U$30:INDIRECT(ADDRESS(29+$G$3,21,1,,"Beregninger")),">"&Y116) -> 0 | AJ122: Målepunkt 3 | AL122: =COUNTIF($AP$30:INDIRECT(ADDRESS(29+$G$3,42,1,,"Beregninger")),">"&AL116) -> 0 | AM122: =COUNTIF($AP$30:INDIRECT(ADDRESS(29+$G$3,42,1,,"Beregninger")),">"&AM116) -> 0 | AN122: =COUNTIF($AP$30:INDIRECT(ADDRESS(29+$G$3,42,1,,"Beregninger")),">"&AN116) -> 0 | AO122: =COUNTIF($AP$30:INDIRECT(ADDRESS(29+$G$3,42,1,,"Beregninger")),">"&AO116) -> 0 | AP122: =COUNTIF($AP$30:INDIRECT(ADDRESS(29+$G$3,42,1,,"Beregninger")),">"&AP116) -> 0 | AQ122: =COUNTIF($AP$30:INDIRECT(ADDRESS(29+$G$3,42,1,,"Beregninger")),">"&AQ116) -> 0 | AR122: =COUNTIF($AP$30:INDIRECT(ADDRESS(29+$G$3,42,1,,"Beregninger")),">"&AR116) -> 0 | AS122: =COUNTIF($AP$30:INDIRECT(ADDRESS(29+$G$3,42,1,,"Beregninger")),">"&AS116) -> 0 | AT122: =COUNTIF($AP$30:INDIRECT(ADDRESS(29+$G$3,42,1,,"Beregninger")),">"&AT116) -> 0
A123: Nej | C123: 1901 | D123: - | E123: 1933 | F123: 122 | G123: 61 | H123: 3 | I123: 7 | J123: 61 | K123: 10 | L123: 11
A124: Nej | C124: 1934 | D124: - | E124: 1966 | F124: 123 | G124: 62 | H124: 3 | I124: 7 | J124: 61 | K124: 10 | L124: 11 | O124: Målere fordelt i intervaller til grafer (intervaller er her angivet afrundet til én decimal, men optælling er ift. de præcise værdier): | AJ124: Målere fordelt i intervaller til grafer (intervaller er her angivet afrundet til én decimal, men optælling er ift. de præcise værdier):
A125: Nej | C125: 1967 | D125: - | E125: 2000 | F125: 124 | G125: 62 | H125: 3 | I125: 7 | J125: 62 | K125: 10 | L125: 11 | Q125: ≤6,3 | R125: >6,3-7,1 | S125: >7,1-7,9 | T125: >7,9-8,7 | U125: >8,7-9,5 | V125: >9,5-10,2 | W125: >10,2-11,0 | X125: >11,0-11,8 | Y125: >11,8-12,6 | Z125: >12,6 | AL125: ≤6,3 | AM125: >6,3-7,1 | AN125: >7,1-7,9 | AO125: >7,9-8,7 | AP125: >8,7-9,5 | AQ125: >9,5-10,2 | AR125: >10,2-11,0 | AS125: >11,0-11,8 | AT125: >11,8-12,6 | AU125: >12,6
A126: Nej | C126: 2001 | D126: - | E126: 2033 | F126: 125 | G126: 63 | H126: 3 | I126: 7 | J126: 62 | K126: 10 | L126: 11 | O126: Målepunkt 1 | Q126: =COUNTIF($O$30:INDIRECT(ADDRESS(29+$G$3,15,1,,"Beregninger")),"<="&Q114) -> 32 | R126: =Q120-R120 -> 0 | S126: =R120-S120 -> 0 | T126: 0 | U126: 0 | V126: 0 | W126: 0 | X126: 0 | Y126: 0 | Z126: =Y120 -> 0 | AJ126: Målepunkt 1 | AL126: =COUNTIF($AJ$30:INDIRECT(ADDRESS(29+$G$3,36,1,,"Beregninger")),"<="&AL114) -> 32 | AM126: =AL120-AM120 -> 0 | AN126: =AM120-AN120 -> 0 | AO126: =AN120-AO120 -> 0 | AP126: =AO120-AP120 -> 0 | AQ126: =AP120-AQ120 -> 0 | AR126: =AQ120-AR120 -> 0 | AS126: =AR120-AS120 -> 0 | AT126: =AS120-AT120 -> 0 | AU126: =AT120 -> 0
A127: Nej | C127: 2034 | D127: - | E127: 2066 | F127: 126 | G127: 63 | H127: 3 | I127: 7 | J127: 63 | K127: 10 | L127: 11 | Q127: ≤5,0 | R127: >5,0-5,6 | S127: >5,6-6,3 | T127: >6,3-6,9 | U127: >6,9-7,5 | V127: >7,5-8,1 | W127: >8,1-8,8 | X127: >8,8-9,4 | Y127: >9,4-10,0 | Z127: >10,0 | AL127: ≤5,0 | AM127: >5,0-5,6 | AN127: >5,6-6,3 | AO127: >6,3-6,9 | AP127: >6,9-7,5 | AQ127: >7,5-8,1 | AR127: >8,1-8,8 | AS127: >8,8-9,4 | AT127: >9,4-10,0 | AU127: >10,0
A128: Nej | C128: 2067 | D128: - | E128: =C129-1 -> 2100 | F128: 127 | G128: 64 | H128: 3 | I128: 7 | J128: 63 | K128: 10 | L128: 11 | O128: Målepunkt 2 | Q128: =COUNTIF($R$30:INDIRECT(ADDRESS(29+$G$3,18,1,,"Beregninger")),"<="&Q115) -> 32 | R128: =Q121-R121 -> 0 | S128: 0 | T128: 0 | U128: 0 | V128: 0 | W128: =V121-W121 -> 0 | X128: 0 | Y128: 0 | Z128: =Y121 -> 0 | AJ128: Målepunkt 2 | AL128: =COUNTIF($AM$30:INDIRECT(ADDRESS(29+$G$3,39,1,,"Beregninger")),"<="&AL115) -> 32 | AM128: =AL121-AM121 -> 0 | AN128: =AM121-AN121 -> 0 | AO128: =AN121-AO121 -> 0 | AP128: =AO121-AP121 -> 0 | AQ128: =AP121-AQ121 -> 0 | AR128: =AQ121-AR121 -> 0 | AS128: =AR121-AS121 -> 0 | AT128: =AS121-AT121 -> 0 | AU128: =AT121 -> 0
A129: Nej | C129: 2101 | D129: - | E129: 2133 | F129: 128 | G129: 64 | H129: 3 | I129: 7 | J129: 64 | K129: 10 | L129: 11 | Q129: ≤5,2 | R129: >5,2-5,9 | S129: >5,9-6,5 | T129: >6,5-7,2 | U129: >7,2-7,8 | V129: >7,8-8,5 | W129: >8,5-9,1 | X129: >9,1-9,8 | Y129: >9,8-10,4 | Z129: >10,4 | AL129: ≤5,2 | AM129: >5,2-5,9 | AN129: >5,9-6,5 | AO129: >6,5-7,2 | AP129: >7,2-7,8 | AQ129: >7,8-8,5 | AR129: >8,5-9,1 | AS129: >9,1-9,8 | AT129: >9,8-10,4 | AU129: >10,4
A130: Nej | C130: 2134 | D130: - | E130: 2166 | F130: 129 | G130: 65 | H130: 3 | I130: 7 | J130: 64 | K130: 10 | L130: 11 | O130: Målepunkt 3 | Q130: =COUNTIF($U$30:INDIRECT(ADDRESS(29+$G$3,21,1,,"Beregninger")),"<="&Q116) -> 32 | R130: =Q122-R122 -> 0 | S130: 0 | T130: 0 | U130: 0 | V130: 0 | W130: 0 | X130: 0 | Y130: 0 | Z130: =Y122 -> 0 | AJ130: Målepunkt 3 | AL130: =COUNTIF($AP$30:INDIRECT(ADDRESS(29+$G$3,42,1,,"Beregninger")),"<="&AL116) -> 32 | AM130: =AL122-AM122 -> 0 | AN130: =AM122-AN122 -> 0 | AO130: =AN122-AO122 -> 0 | AP130: =AO122-AP122 -> 0 | AQ130: =AP122-AQ122 -> 0 | AR130: =AQ122-AR122 -> 0 | AS130: =AR122-AS122 -> 0 | AT130: =AS122-AT122 -> 0 | AU130: =AT122 -> 0
A131: Nej | C131: 2167 | D131: - | E131: 2199 | F131: 130 | G131: 65 | H131: 3 | I131: 7 | J131: 65 | K131: 10 | L131: 11
A132: Nej | C132: 2200 | D132: - | E132: 2200 | F132: 130 | G132: 65 | H132: 4 | I132: 7 | J132: 65 | K132: 10 | L132: 11
A133: Nej | C133: 2201 | D133: - | E133: 2233 | F133: 131 | G133: 66 | H133: 4 | I133: 7 | J133: 65 | K133: 10 | L133: 11 | AJ133: Stikprøve 1+2: Optælling af målere til grafer
A134: Nej | C134: 2234 | D134: - | E134: 2266 | F134: 132 | G134: 66 | H134: 4 | I134: 7 | J134: 66 | K134: 10 | L134: 11 | AJ134: Målere fordelt i intervaller til grafer (intervaller er her angivet afrundet til én decimal, men optælling er ift. de præcise værdier):
A135: Nej | C135: 2267 | D135: - | E135: 2300 | F135: 133 | G135: 67 | H135: 4 | I135: 7 | J135: 66 | K135: 10 | L135: 11 | AL135: ≤6,3 | AM135: >6,3-7,1 | AN135: >7,1-7,9 | AO135: >7,9-8,7 | AP135: >8,7-9,5 | AQ135: >9,5-10,2 | AR135: >10,2-11,0 | AS135: >11,0-11,8 | AT135: >11,8-12,6 | AU135: >12,6
A136: Nej | C136: 2301 | D136: - | E136: 2333 | F136: 134 | G136: 67 | H136: 4 | I136: 7 | J136: 67 | K136: 10 | L136: 11 | AJ136: Målepunkt 1 | AL136: =Q126+AL126 -> 64 | AM136: =R126+AM126 -> 0 | AN136: 0 | AO136: 0 | AP136: 0 | AQ136: 0 | AR136: 0 | AS136: 0 | AT136: 0 | AU136: 0
A137: Nej | C137: 2334 | D137: - | E137: 2366 | F137: 135 | G137: 68 | H137: 4 | I137: 7 | J137: 67 | K137: 10 | L137: 11 | AL137: ≤5,0 | AM137: >5,0-5,6 | AN137: >5,6-6,3 | AO137: >6,3-6,9 | AP137: >6,9-7,5 | AQ137: >7,5-8,1 | AR137: >8,1-8,8 | AS137: >8,8-9,4 | AT137: >9,4-10,0 | AU137: >10,0
A138: Nej | C138: 2367 | D138: - | E138: 2400 | F138: 136 | G138: 68 | H138: 4 | I138: 7 | J138: 68 | K138: 10 | L138: 11 | AJ138: Målepunkt 2 | AL138: =Q128+AL128 -> 64 | AM138: =R128+AM128 -> 0 | AN138: =S128+AN128 -> 0 | AO138: =T128+AO128 -> 0 | AP138: =U128+AP128 -> 0 | AQ138: =V128+AQ128 -> 0 | AR138: =W128+AR128 -> 0 | AS138: =X128+AS128 -> 0 | AT138: =Y128+AT128 -> 0 | AU138: =Z128+AU128 -> 0
A139: Nej | C139: 2401 | D139: - | E139: 2433 | F139: 137 | G139: 69 | H139: 4 | I139: 7 | J139: =F139-G139 -> 68 | K139: 10 | L139: 11 | AL139: ≤5,2 | AM139: >5,2-5,9 | AN139: >5,9-6,5 | AO139: >6,5-7,2 | AP139: >7,2-7,8 | AQ139: >7,8-8,5 | AR139: >8,5-9,1 | AS139: >9,1-9,8 | AT139: >9,8-10,4 | AU139: >10,4
A140: =IF(AND($G$2>(C140-1),$G$2<(E140+1)),"Ja","Nej") -> Nej | C140: 2434 | D140: - | E140: 2466 | F140: 138 | G140: 69 | H140: 4 | I140: 7 | J140: 69 | K140: 10 | L140: 11 | AJ140: Målepunkt 3 | AL140: =Q130+AL130 -> 64 | AM140: =R130+AM130 -> 0 | AN140: =S130+AN130 -> 0 | AO140: =T130+AO130 -> 0 | AP140: =U130+AP130 -> 0 | AQ140: =V130+AQ130 -> 0 | AR140: =W130+AR130 -> 0 | AS140: =X130+AS130 -> 0 | AT140: =Y130+AT130 -> 0 | AU140: =Z130+AU130 -> 0
A141: Nej | C141: 2467 | D141: - | E141: 2500 | F141: 139 | G141: 70 | H141: 4 | I141: 7 | J141: 69 | K141: 10 | L141: 11
A142: Nej | C142: 2501 | D142: - | E142: 2533 | F142: 140 | G142: 70 | H142: 4 | I142: 7 | J142: 70 | K142: 10 | L142: 11
A143: Nej | C143: 2534 | D143: - | E143: 2566 | F143: 141 | G143: 71 | H143: 4 | I143: 8 | J143: 70 | K143: 11 | L143: 12
A144: Nej | C144: 2567 | D144: - | E144: 2600 | F144: 142 | G144: 71 | H144: 4 | I144: 8 | J144: 71 | K144: 11 | L144: 12
A145: Nej | C145: 2601 | D145: - | E145: 2633 | F145: 143 | G145: 72 | H145: 4 | I145: 8 | J145: 71 | K145: 11 | L145: 12
A146: Nej | C146: 2634 | D146: - | E146: 2666 | F146: 144 | G146: 72 | H146: 4 | I146: 8 | J146: 72 | K146: 11 | L146: 12
A147: Nej | C147: 2667 | D147: - | E147: 2700 | F147: 145 | G147: 73 | H147: 4 | I147: 8 | J147: 72 | K147: 11 | L147: 12
A148: Nej | C148: 2701 | D148: - | E148: 2733 | F148: 146 | G148: 73 | H148: 4 | I148: 8 | J148: 73 | K148: 11 | L148: 12
A149: Nej | C149: 2734 | D149: - | E149: 2766 | F149: 147 | G149: 74 | H149: 4 | I149: 8 | J149: 73 | K149: 11 | L149: 12
A150: Nej | C150: 2767 | D150: - | E150: 2800 | F150: 148 | G150: 74 | H150: 4 | I150: 8 | J150: 74 | K150: 11 | L150: 12
A151: Nej | C151: 2801 | D151: - | E151: 2833 | F151: 149 | G151: 75 | H151: 4 | I151: 8 | J151: 74 | K151: 11 | L151: 12
A152: Nej | C152: 2834 | D152: - | E152: 2866 | F152: 150 | G152: 75 | H152: 4 | I152: 8 | J152: 75 | K152: 11 | L152: 12
A153: Nej | C153: 2867 | D153: - | E153: =C154-1 -> 2900 | F153: 151 | G153: 76 | H153: 4 | I153: 8 | J153: 75 | K153: 11 | L153: 12
A154: Nej | C154: 2901 | D154: - | E154: 2933 | F154: 152 | G154: 76 | H154: 4 | I154: 8 | J154: 76 | K154: 11 | L154: 12
A155: Nej | C155: 2934 | D155: - | E155: 2966 | F155: 153 | G155: 77 | H155: 4 | I155: 8 | J155: 76 | K155: 11 | L155: 12
A156: Nej | C156: 2967 | D156: - | E156: 3000 | F156: 154 | G156: 77 | H156: 4 | I156: 8 | J156: 77 | K156: 11 | L156: 12
A157: Nej | C157: 3001 | D157: - | E157: 3033 | F157: 155 | G157: 78 | H157: 4 | I157: 8 | J157: 77 | K157: 11 | L157: 12
A158: Nej | C158: 3034 | D158: - | E158: 3066 | F158: 156 | G158: 78 | H158: 4 | I158: 8 | J158: 78 | K158: 11 | L158: 12
A159: Nej | C159: 3067 | D159: - | E159: 3100 | F159: 157 | G159: 79 | H159: 4 | I159: 8 | J159: 78 | K159: 11 | L159: 12
A160: Nej | C160: 3101 | D160: - | E160: 3133 | F160: 158 | G160: 79 | H160: 4 | I160: 8 | J160: 79 | K160: 11 | L160: 12
A161: Nej | C161: 3134 | D161: - | E161: 3166 | F161: 159 | G161: 80 | H161: 4 | I161: 8 | J161: 79 | K161: 11 | L161: 12
A162: Nej | C162: 3167 | D162: - | E162: 3199 | F162: 160 | G162: 80 | H162: 4 | I162: 8 | J162: 80 | K162: 11 | L162: 12
A163: Nej | C163: 3200 | D163: - | E163: 3200 | F163: 160 | G163: 80 | H163: 5 | I163: 9 | J163: 80 | K163: 12 | L163: 13
